{"text_format":"1","workbook":"xlsx","n_sheets":6,"sheets":["RECURSOS INVERSIÓN","RECURSOS FUNCIONAMIENTO","Hoja1","Instructivo para diligenciamien","Entidades","Tablas Listas Desplegables"],"not_rendered":{"charts":0,"images":0,"macros":0,"external_links":0,"defined_names":5,"comments":2,"pivot_tables":0},"unopened":[],"bounds":{"document_bytes":16777216,"sheet_cells":100000,"rows_first":2000,"rows_last":500,"rows_between":2000,"halvings":0,"cell_chars":16384,"cell_head_chars":4096},"cells_cut":0,"cells_raw":0,"read":"whole","date_system":"1900"}

{"sheet":"RECURSOS INVERSIÓN","index":0,"n_rows":106,"n_cols":15,"rows_kept":106,"cut":false,"hidden":false,"merged":[[3,8,3,14],[1,0,1,1],[1,2,1,3],[2,0,2,1],[2,2,2,3],[3,0,3,7]]}
["Marcación y Seguimiento a la ejecución del Trazador Presupuestal - TPIEG 2025"]
["Entidad :"]
["Corte de información al mes de:"]
["Información general",null,null,null,null,null,null,null,"Inversión"]
["No.CRP","Fecha Expedición CRP\n(dia/mes/año)","Código BPIN-Proyecto de Inversión","Elemento PEP","Productos\nPMR","Trazador","Impacto","Codificación\nSubcategoría"," Compromisos \n(Valor del CRP)\n (Solo para trazador) \n","Giros-Enero a Marzo\n(Pago del CRP)\n(Solo para trazador) \n","Giros-Abril a Junio\n(Pago del CRP)\n(Solo para trazador) \n","Giros-Julio a Septiembre\n(Pago del CRP)\n(Solo para trazador) \n","Giros-Octubre a Diciembre\n(Pago del CRP)\n(Solo para trazador) \n","Total Giros\n2025","Saldo por pagar"]
[null,null,null,null,{"$f":"IF(OR(RIGHT(D6,4)=\"FUNC\",RIGHT(D6,4)=\"_OPE\"),\"N/A\",MID(D6,11,2))","v":""},{"$f":"IF(ISERR(FIND(\"(\",H6)),\"N/A\",LEFT(H6,FIND(\"(\",H6)-1))","v":"N/A"},{"$f":"IF(ISERR(FIND(\"indirecto\",LOWER(H6))),IF(ISERR(FIND(\"directo\",LOWER(H6))),\"N/A\",\"Directo\"),\"Indirecto\")","v":"N/A"},null,null,null,null,null,null,{"$f":"J6+K6+L6+M6","v":0},{"$f":"I6-N6","v":0}]
[null,null,null,null,"",{"$f":"IF(ISERR(FIND(\"(\",H7)),\"N/A\",LEFT(H7,FIND(\"(\",H7)-1))","v":"N/A"},{"$f":"IF(ISERR(FIND(\"indirecto\",LOWER(H7))),IF(ISERR(FIND(\"directo\",LOWER(H7))),\"N/A\",\"Directo\"),\"Indirecto\")","v":"N/A"},null,null,null,null,null,null,{"$f":"J7+K7+L7+M7","v":0},0]
[null,null,null,null,"","N/A","N/A",null,null,null,null,null,null,0,0]
[null,null,null,null,"","N/A","N/A",null,null,null,null,null,null,0,0]
[null,null,null,null,"","N/A","N/A",null,null,null,null,null,null,0,0]
[null,null,null,null,"","N/A","N/A",null,null,null,null,null,null,0,0]
[null,null,null,null,"","N/A","N/A",null,null,null,null,null,null,0,0]
[null,null,null,null,"","N/A","N/A",null,null,null,null,null,null,0,0]
[null,null,null,null,"","N/A","N/A",null,null,null,null,null,null,0,0]
[null,null,null,null,"","N/A","N/A",null,null,null,null,null,null,0,0]
[null,null,null,null,"","N/A","N/A",null,null,null,null,null,null,0,0]
[null,null,null,null,"","N/A","N/A",null,null,null,null,null,null,0,0]
[null,null,null,null,"","N/A","N/A",null,null,null,null,null,null,0,0]
[null,null,null,null,"","N/A","N/A",null,null,null,null,null,null,0,0]
[null,null,null,null,"","N/A","N/A",null,null,null,null,null,null,0,0]
[null,null,null,null,"","N/A","N/A",null,null,null,null,null,null,0,0]
[null,null,null,null,"","N/A","N/A",null,null,null,null,null,null,0,0]
[null,null,null,null,"","N/A","N/A",null,null,null,null,null,null,0,0]
[null,null,null,null,"","N/A","N/A",null,null,null,null,null,null,0,0]
[null,null,null,null,"","N/A","N/A",null,null,null,null,null,null,0,0]
[null,null,null,null,"","N/A","N/A",null,null,null,null,null,null,0,0]
[null,null,null,null,"","N/A","N/A",null,null,null,null,null,null,0,0]
[null,null,null,null,"","N/A","N/A",null,null,null,null,null,null,0,0]
[null,null,null,null,"","N/A","N/A",null,null,null,null,null,null,0,0]
[null,null,null,null,"","N/A","N/A",null,null,null,null,null,null,0,0]
[null,null,null,null,"","N/A","N/A",null,null,null,null,null,null,0,0]
[null,null,null,null,"","N/A","N/A",null,null,null,null,null,null,0,0]
[null,null,null,null,"","N/A","N/A",null,null,null,null,null,null,0,0]
[null,null,null,null,"","N/A","N/A",null,null,null,null,null,null,0,0]
[null,null,null,null,"","N/A","N/A",null,null,null,null,null,null,0,0]
[null,null,null,null,"","N/A","N/A",null,null,null,null,null,null,0,0]
[null,null,null,null,"","N/A","N/A",null,null,null,null,null,null,0,0]
[null,null,null,null,"","N/A","N/A",null,null,null,null,null,null,0,0]
[null,null,null,null,"","N/A","N/A",null,null,null,null,null,null,0,0]
[null,null,null,null,"","N/A","N/A",null,null,null,null,null,null,0,0]
[null,null,null,null,"","N/A","N/A",null,null,null,null,null,null,0,0]
[null,null,null,null,"","N/A","N/A",null,null,null,null,null,null,0,0]
[null,null,null,null,"","N/A","N/A",null,null,null,null,null,null,0,0]
[null,null,null,null,"","N/A","N/A",null,null,null,null,null,null,0,0]
[null,null,null,null,"","N/A","N/A",null,null,null,null,null,null,0,0]
[null,null,null,null,"","N/A","N/A",null,null,null,null,null,null,0,0]
[null,null,null,null,"","N/A","N/A",null,null,null,null,null,null,0,0]
[null,null,null,null,"","N/A","N/A",null,null,null,null,null,null,0,0]
[null,null,null,null,"","N/A","N/A",null,null,null,null,null,null,0,0]
[null,null,null,null,"","N/A","N/A",null,null,null,null,null,null,0,0]
[null,null,null,null,"","N/A","N/A",null,null,null,null,null,null,0,0]
[null,null,null,null,"","N/A","N/A",null,null,null,null,null,null,0,0]
[null,null,null,null,"","N/A","N/A",null,null,null,null,null,null,0,0]
[null,null,null,null,"","N/A","N/A",null,null,null,null,null,null,0,0]
[null,null,null,null,"","N/A","N/A",null,null,null,null,null,null,0,0]
[null,null,null,null,"","N/A","N/A",null,null,null,null,null,null,0,0]
[null,null,null,null,"","N/A","N/A",null,null,null,null,null,null,0,0]
[null,null,null,null,"","N/A","N/A",null,null,null,null,null,null,0,0]
[null,null,null,null,"","N/A","N/A",null,null,null,null,null,null,0,0]
[null,null,null,null,"","N/A","N/A",null,null,null,null,null,null,0,0]
[null,null,null,null,"","N/A","N/A",null,null,null,null,null,null,0,0]
[null,null,null,null,"","N/A","N/A",null,null,null,null,null,null,0,0]
[null,null,null,null,"","N/A","N/A",null,null,null,null,null,null,0,0]
[null,null,null,null,"","N/A","N/A",null,null,null,null,null,null,0,0]
[null,null,null,null,"","N/A","N/A",null,null,null,null,null,null,0,0]
[null,null,null,null,"","N/A","N/A",null,null,null,null,null,null,0,0]
[null,null,null,null,"","N/A","N/A",null,null,null,null,null,null,0,0]
[null,null,null,null,"","N/A","N/A",null,null,null,null,null,null,0,0]
[null,null,null,null,"","N/A","N/A",null,null,null,null,null,null,0,0]
[null,null,null,null,{"$f":"IF(OR(RIGHT(D70,4)=\"FUNC\",RIGHT(D70,4)=\"_OPE\"),\"N/A\",MID(D70,11,2))","v":""},"N/A","N/A",null,null,null,null,null,null,0,{"$f":"I70-N70","v":0}]
[null,null,null,null,"",{"$f":"IF(ISERR(FIND(\"(\",H71)),\"N/A\",LEFT(H71,FIND(\"(\",H71)-1))","v":"N/A"},{"$f":"IF(ISERR(FIND(\"indirecto\",LOWER(H71))),IF(ISERR(FIND(\"directo\",LOWER(H71))),\"N/A\",\"Directo\"),\"Indirecto\")","v":"N/A"},null,null,null,null,null,null,{"$f":"J71+K71+L71+M71","v":0},0]
[null,null,null,null,"","N/A","N/A",null,null,null,null,null,null,0,0]
[null,null,null,null,"","N/A","N/A",null,null,null,null,null,null,0,0]
[null,null,null,null,"","N/A","N/A",null,null,null,null,null,null,0,0]
[null,null,null,null,"","N/A","N/A",null,null,null,null,null,null,0,0]
[null,null,null,null,"","N/A","N/A",null,null,null,null,null,null,0,0]
[null,null,null,null,"","N/A","N/A",null,null,null,null,null,null,0,0]
[null,null,null,null,"","N/A","N/A",null,null,null,null,null,null,0,0]
[null,null,null,null,"","N/A","N/A",null,null,null,null,null,null,0,0]
[null,null,null,null,"","N/A","N/A",null,null,null,null,null,null,0,0]
[null,null,null,null,"","N/A","N/A",null,null,null,null,null,null,0,0]
[null,null,null,null,"","N/A","N/A",null,null,null,null,null,null,0,0]
[null,null,null,null,"","N/A","N/A",null,null,null,null,null,null,0,0]
[null,null,null,null,"","N/A","N/A",null,null,null,null,null,null,0,0]
[null,null,null,null,"","N/A","N/A",null,null,null,null,null,null,0,0]
[null,null,null,null,"","N/A","N/A",null,null,null,null,null,null,0,0]
[null,null,null,null,"","N/A","N/A",null,null,null,null,null,null,0,0]
[null,null,null,null,"","N/A","N/A",null,null,null,null,null,null,0,0]
[null,null,null,null,"","N/A","N/A",null,null,null,null,null,null,0,0]
[null,null,null,null,"","N/A","N/A",null,null,null,null,null,null,0,0]
[null,null,null,null,"","N/A","N/A",null,null,null,null,null,null,0,0]
[null,null,null,null,"","N/A","N/A",null,null,null,null,null,null,0,0]
[null,null,null,null,"","N/A","N/A",null,null,null,null,null,null,0,0]
[null,null,null,null,"","N/A","N/A",null,null,null,null,null,null,0,0]
[null,null,null,null,"","N/A","N/A",null,null,null,null,null,null,0,0]
[null,null,null,null,"","N/A","N/A",null,null,null,null,null,null,0,0]
[null,null,null,null,"","N/A","N/A",null,null,null,null,null,null,0,0]
[null,null,null,null,"","N/A","N/A",null,null,null,null,null,null,0,0]
[null,null,null,null,"","N/A","N/A",null,null,null,null,null,null,0,0]
[null,null,null,null,"","N/A","N/A",null,null,null,null,null,null,0,0]
[null,null,null,null,"","N/A","N/A",null,null,null,null,null,null,0,0]
[null,null,null,null,"","N/A","N/A",null,null,null,null,null,null,0,0]
[null,null,null,null,"","N/A","N/A",null,null,null,null,null,null,0,0]
[null,null,null,null,"","N/A","N/A",null,null,null,null,null,null,0,0]
[null,null,null,null,"","N/A","N/A",null,null,null,null,null,null,0,0]
[null,null," "," "," "," ",null," "," "," "]

{"sheet":"RECURSOS FUNCIONAMIENTO","index":1,"n_rows":106,"n_cols":14,"rows_kept":106,"cut":false,"hidden":false,"merged":[[3,7,3,13],[1,0,1,1],[3,0,3,6],[2,2,2,3],[1,2,1,3],[2,0,2,1]]}
["Marcación y Seguimiento a la ejecución del Trazador Presupuestal - TPIEG 2025"]
["Entidad / FDL:"]
["Corte de información al mes de:"]
["Información general",null,null,null,null,null,null,"Funcionamiento"]
["No.CRP","Fecha Expedición CRP\n(dia/mes/año)","Código Rubro","Elemento PEP","Trazador","Impacto","Codificación\nSubcategoría"," Compromisos \n(Valor del CRP)\n (Solo para trazador) \n","Giros-Enero a Marzo\n(Pago del CRP)\n(Solo para trazador) \n","Giros-Abril a Junio\n(Pago del CRP)\n(Solo para trazador) \n","Giros-Julio a Septiembre\n(Pago del CRP)\n(Solo para trazador) \n","Giros-Octubre a DIciembre\n(Pago del CRP)\n(Solo para trazador) \n","Total Giros\n2025","Saldo por pagar"]
[null,null,null,null,{"$f":"IF(ISERR(FIND(\"(\",G6)),\"N/A\",LEFT(G6,FIND(\"(\",G6)-1))","v":"N/A"},{"$f":"IF(ISERR(FIND(\"indirecto\",LOWER(G6))),IF(ISERR(FIND(\"directo\",LOWER(G6))),\"N/A\",\"Directo\"),\"Indirecto\")","v":"N/A"},null,null,null,null,null,null,{"$f":"I6+J6+K6+L6","v":0},{"$f":"H6-M6","v":0}]
[null,null,null,null,{"$f":"IF(ISERR(FIND(\"(\",G7)),\"N/A\",LEFT(G7,FIND(\"(\",G7)-1))","v":"N/A"},{"$f":"IF(ISERR(FIND(\"indirecto\",LOWER(G7))),IF(ISERR(FIND(\"directo\",LOWER(G7))),\"N/A\",\"Directo\"),\"Indirecto\")","v":"N/A"},null,null,null,null,null,null,{"$f":"I7+J7+K7+L7","v":0},0]
[null,null,null,null,"N/A","N/A",null,null,null,null,null,null,0,0]
[null,null,null,null,"N/A","N/A",null,null,null,null,null,null,0,0]
[null,null,null,null,"N/A","N/A",null,null,null,null,null,null,0,0]
[null,null,null,null,"N/A","N/A",null,null,null,null,null,null,0,0]
[null,null,null,null,"N/A","N/A",null,null,null,null,null,null,0,0]
[null,null,null,null,"N/A","N/A",null,null,null,null,null,null,0,0]
[null,null,null,null,"N/A","N/A",null,null,null,null,null,null,0,0]
[null,null,null,null,"N/A","N/A",null,null,null,null,null,null,0,0]
[null,null,null,null,"N/A","N/A",null,null,null,null,null,null,0,0]
[null,null,null,null,"N/A","N/A",null,null,null,null,null,null,0,0]
[null,null,null,null,"N/A","N/A",null,null,null,null,null,null,0,0]
[null,null,null,null,"N/A","N/A",null,null,null,null,null,null,0,0]
[null,null,null,null,"N/A","N/A",null,null,null,null,null,null,0,0]
[null,null,null,null,"N/A","N/A",null,null,null,null,null,null,0,0]
[null,null,null,null,"N/A","N/A",null,null,null,null,null,null,0,0]
[null,null,null,null,"N/A","N/A",null,null,null,null,null,null,0,0]
[null,null,null,null,"N/A","N/A",null,null,null,null,null,null,0,0]
[null,null,null,null,"N/A","N/A",null,null,null,null,null,null,0,0]
[null,null,null,null,"N/A","N/A",null,null,null,null,null,null,0,0]
[null,null,null,null,"N/A","N/A",null,null,null,null,null,null,0,0]
[null,null,null,null,"N/A","N/A",null,null,null,null,null,null,0,0]
[null,null,null,null,"N/A","N/A",null,null,null,null,null,null,0,0]
[null,null,null,null,"N/A","N/A",null,null,null,null,null,null,0,0]
[null,null,null,null,"N/A","N/A",null,null,null,null,null,null,0,0]
[null,null,null,null,"N/A","N/A",null,null,null,null,null,null,0,0]
[null,null,null,null,"N/A","N/A",null,null,null,null,null,null,0,0]
[null,null,null,null,"N/A","N/A",null,null,null,null,null,null,0,0]
[null,null,null,null,"N/A","N/A",null,null,null,null,null,null,0,0]
[null,null,null,null,"N/A","N/A",null,null,null,null,null,null,0,0]
[null,null,null,null,"N/A","N/A",null,null,null,null,null,null,0,0]
[null,null,null,null,"N/A","N/A",null,null,null,null,null,null,0,{"$f":"H38-M38","v":0}]
[null,null,null,null,"N/A","N/A",null,null,null,null,null,null,0,0]
[null,null,null,null,"N/A","N/A",null,null,null,null,null,null,0,0]
[null,null,null,null,"N/A","N/A",null,null,null,null,null,null,0,0]
[null,null,null,null,"N/A","N/A",null,null,null,null,null,null,0,0]
[null,null,null,null,"N/A","N/A",null,null,null,null,null,null,0,0]
[null,null,null,null,"N/A","N/A",null,null,null,null,null,null,0,0]
[null,null,null,null,"N/A","N/A",null,null,null,null,null,null,0,0]
[null,null,null,null,"N/A","N/A",null,null,null,null,null,null,0,0]
[null,null,null,null,"N/A","N/A",null,null,null,null,null,null,0,0]
[null,null,null,null,"N/A","N/A",null,null,null,null,null,null,0,0]
[null,null,null,null,"N/A","N/A",null,null,null,null,null,null,0,0]
[null,null,null,null,"N/A","N/A",null,null,null,null,null,null,0,0]
[null,null,null,null,"N/A","N/A",null,null,null,null,null,null,0,0]
[null,null,null,null,"N/A","N/A",null,null,null,null,null,null,0,0]
[null,null,null,null,"N/A","N/A",null,null,null,null,null,null,0,0]
[null,null,null,null,"N/A","N/A",null,null,null,null,null,null,0,0]
[null,null,null,null,"N/A","N/A",null,null,null,null,null,null,0,0]
[null,null,null,null,"N/A","N/A",null,null,null,null,null,null,0,0]
[null,null,null,null,"N/A","N/A",null,null,null,null,null,null,0,0]
[null,null,null,null,"N/A","N/A",null,null,null,null,null,null,0,0]
[null,null,null,null,"N/A","N/A",null,null,null,null,null,null,0,0]
[null,null,null,null,"N/A","N/A",null,null,null,null,null,null,0,0]
[null,null,null,null,"N/A","N/A",null,null,null,null,null,null,0,0]
[null,null,null,null,"N/A","N/A",null,null,null,null,null,null,0,0]
[null,null,null,null,"N/A","N/A",null,null,null,null,null,null,0,0]
[null,null,null,null,"N/A","N/A",null,null,null,null,null,null,0,0]
[null,null,null,null,"N/A","N/A",null,null,null,null,null,null,0,0]
[null,null,null,null,"N/A","N/A",null,null,null,null,null,null,0,0]
[null,null,null,null,"N/A","N/A",null,null,null,null,null,null,0,0]
[null,null,null,null,"N/A","N/A",null,null,null,null,null,null,0,0]
[null,null,null,null,"N/A","N/A",null,null,null,null,null,null,0,0]
[null,null,null,null,"N/A","N/A",null,null,null,null,null,null,0,{"$f":"H70-M70","v":0}]
[null,null,null,null,{"$f":"IF(ISERR(FIND(\"(\",G71)),\"N/A\",LEFT(G71,FIND(\"(\",G71)-1))","v":"N/A"},{"$f":"IF(ISERR(FIND(\"indirecto\",LOWER(G71))),IF(ISERR(FIND(\"directo\",LOWER(G71))),\"N/A\",\"Directo\"),\"Indirecto\")","v":"N/A"},null,null,null,null,null,null,{"$f":"I71+J71+K71+L71","v":0},0]
[null,null,null,null,"N/A","N/A",null,null,null,null,null,null,0,0]
[null,null,null,null,"N/A","N/A",null,null,null,null,null,null,0,0]
[null,null,null,null,"N/A","N/A",null,null,null,null,null,null,0,0]
[null,null,null,null,"N/A","N/A",null,null,null,null,null,null,0,0]
[null,null,null,null,"N/A","N/A",null,null,null,null,null,null,0,0]
[null,null,null,null,"N/A","N/A",null,null,null,null,null,null,0,0]
[null,null,null,null,"N/A","N/A",null,null,null,null,null,null,0,0]
[null,null,null,null,"N/A","N/A",null,null,null,null,null,null,0,0]
[null,null,null,null,"N/A","N/A",null,null,null,null,null,null,0,0]
[null,null,null,null,"N/A","N/A",null,null,null,null,null,null,0,0]
[null,null,null,null,"N/A","N/A",null,null,null,null,null,null,0,0]
[null,null,null,null,"N/A","N/A",null,null,null,null,null,null,0,0]
[null,null,null,null,"N/A","N/A",null,null,null,null,null,null,0,0]
[null,null,null,null,"N/A","N/A",null,null,null,null,null,null,0,0]
[null,null,null,null,"N/A","N/A",null,null,null,null,null,null,0,0]
[null,null,null,null,"N/A","N/A",null,null,null,null,null,null,0,0]
[null,null,null,null,"N/A","N/A",null,null,null,null,null,null,0,0]
[null,null,null,null,"N/A","N/A",null,null,null,null,null,null,0,0]
[null,null,null,null,"N/A","N/A",null,null,null,null,null,null,0,0]
[null,null,null,null,"N/A","N/A",null,null,null,null,null,null,0,0]
[null,null,null,null,"N/A","N/A",null,null,null,null,null,null,0,0]
[null,null,null,null,"N/A","N/A",null,null,null,null,null,null,0,0]
[null,null,null,null,"N/A","N/A",null,null,null,null,null,null,0,0]
[null,null,null,null,"N/A","N/A",null,null,null,null,null,null,0,0]
[null,null,null,null,"N/A","N/A",null,null,null,null,null,null,0,0]
[null,null,null,null,"N/A","N/A",null,null,null,null,null,null,0,0]
[null,null,null,null,"N/A","N/A",null,null,null,null,null,null,0,0]
[null,null,null,null,"N/A","N/A",null,null,null,null,null,null,0,0]
[null,null,null,null,"N/A","N/A",null,null,null,null,null,null,0,0]
[null,null,null,null,"N/A","N/A",null,null,null,null,null,null,0,0]
[null,null,null,null,"N/A","N/A",null,null,null,null,null,null,0,{"$f":"H102-M102","v":0}]
[null,null,null,null,"N/A","N/A",null,null,null,null,null,null,0,0]
[null,null,null,null,"N/A","N/A",null,null,null,null,null,null,0,0]
[null,null,null,null,"N/A","N/A",null,null,null,null,null,null,0,0]
[null,null," "," "," ",null," "," "," "]

{"sheet":"Hoja1","index":2,"n_rows":68,"n_cols":8,"rows_kept":68,"cut":false,"hidden":true,"merged":[]}
["TPPD(DDA)-C01.Salud y autonomía.01.DIRECTO.Acompañamiento a la atención integral en salud"," ","01 - FDL Usaquén",null,"TPIEG","Trazador presupeustal de Igualdad y equidad de género"," ","Enero"]
["TPPD(DIA)-C01.Salud y autonomía.02.INDIRECTO.Acompañamiento a la atención integral en salud"," ","02 - FDL Chapinero",null,"TPJ","Trazador presupuestal de Juventud"," ","Febrero"]
["TPPD(DDB)-C01.Salud y autonomía.03.DIRECTO.Red de Cuidado colectivo – Rehabilitación Basada en Comunidad (RBC)"," ","03 - FDL Santa fe",null,"TPPD","Trazador presupuestal para población con discapacidad"," ","Marzo"]
["TPPD(DIB)-C01.Salud y autonomía.04.INDIRECTO.Red de Cuidado colectivo – Rehabilitación Basada en Comunidad (RBC)"," ","04 - FDL San Cristóbal",null,"TPTCC","Trazador presupuestal de Territorialización y cultura ciudadana"," ","Abril"]
["TPPD(DDC)-C02.Inclusión y Equidad en la Educación.05.DIRECTO.Permanencia y calidad en el sistema educativo"," ","05 - FDL Usme",null,"TPGE","Trazador presupuestal de Grupos étnicos"," ","Mayo"]
["TPPD(DIC)-C02.Inclusión y Equidad en la Educación.06.INDIRECTO.Permanencia y calidad en el sistema educativo"," ","06 - FDL Tunjuelito",null,"TPCP","Trazador presupuestal de Construcción de Paz"," ","Junio"]
["TPPD(DDD)-C02.Inclusión y Equidad en la Educación.07.DIRECTO.Acceso a educación superior"," ","07 - FDL Bosa",null,null,null,null,"Julio"]
["TPPD(DID)-C02.Inclusión y Equidad en la Educación.08.INDIRECTO.Acceso a educación superior"," ","08 - FDL Kennedy",null,null,null,null,"Agosto"]
["TPPD(DDE)-C03.Protección, Bienestar y justicia social.09.DIRECTO.Inclusión social integral"," ","09 - FDL Fontibón",null,null,null,null,"Septiembre"]
["TPPD(DIE)-C03.Protección, Bienestar y justicia social.10.INDIRECTO.Inclusión social integral"," ","10 - FDL Engativá",null,null,null,null,"Octubre"]
["TPPD(DDF)-C03.Protección, Bienestar y justicia social.11.DIRECTO.Organizaciones de y para Personas con Discapacidad"," ","11 - FDL Suba",null,null,null,null,"Noviembre"]
["TPPD(DIF)-C03.Protección, Bienestar y justicia social.12.INDIRECTO.Organizaciones de y para Personas con Discapacidad"," ","12 - FDL Barrios Unidos",null,null,null,null,"Diciembre"]
["TPPD(DDG)-C03.Protección, Bienestar y justicia social.13.DIRECTO.Acceso a la justicia y capacidad jurídica"," ","13 - FDL Ciudad Bolivar"]
["TPPD(DIG)-C03.Protección, Bienestar y justicia social.14.INDIRECTO.Acceso a la justicia y capacidad jurídica"," ","14 - FDL Mártires"]
["TPPD(DDH)-C04.Empleabilidad y Productividad.15.DIRECTO.Vinculación laboral de Personas con Discapacidad"," ","15 - FDL Antonio Nariño"]
["TPPD(DIH)-C04.Empleabilidad y Productividad.16.INDIRECTO.Vinculación laboral de Personas con Discapacidad"," ","16 - FDL Puente Aranda"]
["TPPD(DDI)-C05.Ciudad accesible e incluyente.17.DIRECTO.Comunicación incluyente y accesible"," ","17 - FDL Candelaria"]
["TPPD(DII)-C05.Ciudad accesible e incluyente.18.INDIRECTO.Comunicación incluyente y accesible"," ","18 - FDL Rafael Uribe"]
["TPPD(DDJ)-C05.Ciudad accesible e incluyente.19.DIRECTO.Movilidad y entornos accesibles e inclusivos"," ","19 - FDL Ciudad Bolivar"]
["TPPD(DIJ)-C05.Ciudad accesible e incluyente.20.INDIRECTO.Movilidad y entornos accesibles e inclusivos"," ","20 - FDL Sumapaz"]
["TPPD(DDK)-C05.Ciudad accesible e incluyente.21.DIRECTO.Vivienda digna y accesible"," ","0102 - Personería Distrital"]
["TPPD(DIK)-C05.Ciudad accesible e incluyente.22.INDIRECTO.Vivienda digna y accesible"," ","0104 - Secretaría General"]
["TPPD(DDL)-C05.Ciudad accesible e incluyente.23.DIRECTO.Prácticas culturales, artísticas, recreativas y deportivas accesibles e incluyentes"," ","0105 - Veeduría Distrital"]
["TPPD(DIL)-C05.Ciudad accesible e incluyente.24.INDIRECTO.Prácticas culturales, artísticas, recreativas y deportivas accesibles e incluyentes"," ","0110 - Secretaría Distrital de Gobierno"]
["TPPD(DDM)-C06.Reconocimiento y derechos del cuidador/a de Personas con Discapacidad.25.DIRECTO.Servicios integrales para cuidadoras/es de Personas con Discapacidad"," ","0111 - Secretaría Distrital de Hacienda"]
["TPPD(DIM)-C06.Reconocimiento y derechos del cuidador/a de Personas con Discapacidad.26.INDIRECTO.Servicios integrales para cuidadoras/es de Personas con Discapacidad"," ","0112 - Secretaría de Educación del Distrito"]
["TPPD(DDN)-C06.Reconocimiento y derechos del cuidador/a de Personas con Discapacidad.27.DIRECTO.Productividad y empleabilidad para Cuidadores/as de Personas con Discapacidad"," ","0113 - Secretaría Distrital de Movilidad"]
["TPPD(DIN)-C06.Reconocimiento y derechos del cuidador/a de Personas con Discapacidad.28.INDIRECTO.Productividad y empleabilidad para Cuidadores/as de Personas con Discapacidad"," ","0117 - Secretaría Distrital de Desarrollo Económico"]
[null,null,"0118 - Secretaría Distrital del Hábitat"]
[null,null,"0119 - Secretaría Distrital de Cultura, Recreación y Deporte"]
[null,null,"0120 - Secretaría Distrital de Planeación"]
[null,null,"0121 - Secretaría Distrital de la Mujer"]
[null,null,"0122 - Secretaría Distrital de Integración Social"]
[null,null,"0125 - Departamento Administrativo del Servicio Civil Distrital"]
[null,null,"0126 - Secretaría Distrital de Ambiente"]
[null,null,"0127 - Departamento Administrativo de la Defensoría del Espacio Público"]
[null,null,"0131 - Unidad Administrativa Especial Cuerpo Oficial de Bomberos"]
[null,null,"0136 - Secretaría Jurídica Distrital"]
[null,null,"0137 - Secretaría Distrital de Seguridad, Convivencia y Justicia"]
[null,null,"0200 - Instituto para la Economía Social"]
[null,null,"0201 - Secretaría Distrital de Salud / Fondo Financiero Distrital de Salud"]
[null,null,"0203 - Instituto Distrital de Gestión de Riesgos y Cambio Climático"]
[null,null,"0204 - Instituto de Desarrollo Urbano"]
[null,null,"0206 - Fondo de Prestaciones Económicas, Cesantías y Pensiones"]
[null,null,"0208 - Caja de Vivienda Popular"]
[null,null,"0211 - Instituto Distrital de Recreación y Deporte"]
[null,null,"0213 - Instituto Distrital del Patrimonio Cultural"]
[null,null,"0214 - Instituto Distrital para la Protección de la Niñez y la Juventud"]
[null,null,"0215 - Fundación Gilberto Alzate Avendaño"]
[null,null,"0216 - Orquesta Filarmónica de Bogotá"]
[null,null,"0218 - Jardín Botánico José Celestino Mutis"]
[null,null,"0219 - Instituto para la Investigación Educativa y el Desarrollo Pedagógico"]
[null,null,"0220 - Instituto Distrital de la Participación y Acción Comunal"]
[null,null,"0221 - Instituto Distrital de Turismo"]
[null,null,"0222 - Instituto Distrital de las Artes"]
[null,null,"0226 - Unidad Administrativa Especial de Catastro Distrital"]
[null,null,"0227 - Unidad Administrativa Especial de Rehabilitación y Mantenimiento Vial"]
[null,null,"0228 - Unidad Administrativa Especial de Servicios Públicos"]
[null,null,"0229 - Instituto Distrital de Protección y Bienestar Animal"]
[null,null,"0230 - Universidad Distrital Francisco José de Caldas"]
[null,null,"0235 - Contraloría Distrital"]
[null,null,"0240 - Lotería de Bogotá"]
[null,null,"0260 - Canal Capital"]
[null,null,"0262 - Empresa de Transporte del Tercer Milenio - Transmilenio S.A."]
[null,null,"0263 - Empresa de Renovación y Desarrollo Urbano"]
[null,null,"0265 - Empresa de Acueducto y Alcantarillado de Bogotá"]
[null,null,"0266 - Empresa Metro de Bogotá S.A."]
[null,null,"0501 - Agencia Distrital para la Educación Superior, la Ciencia y la Tecnología"]

{"sheet":"Instructivo para diligenciamien","index":3,"n_rows":24,"n_cols":2,"rows_kept":24,"cut":false,"hidden":false,"merged":[[0,0,0,1]]}
["Recomendaciones para el registro de información en la herramienta PMR (Productos, Metas y Resultados)"]
["A","Consideraciones Generales"]
[1,"*La unidad de análisis en PMR es el Producto (que es el que tiene asociado los recursos). En consecuencia para el diligenciamiento de este formato, la captura de información se realiza por CRP.(Registro Presupuestal).  \n*Cada CRP de un producto PMR debe ser marcado bajo una sola subcategoria bajo un mismo trazador Presupuestal. Este mismo CRP puede estar marcado en más de un trazador presupuestal."]
[2,"El seguimiento se debe reportar en el formato establecido de manera trimestral."]
[3,"Respecto al CRP:\n*Por  cada CRP se  debe registrar en la columna de  Giros del trimestre correspondiente, los pagos ejecutados en dicho periodo (no se debe acumular con el valor reportado en el trimestre anterior)\n*Se deben registrar  todos los CRP trimestre a trimestre e incluir los  nuevos CRP asociados al trazador que se  vayan expidiendo.\n*Cada CRP debe tener relacionada la fecha de expedición\n*Un CRP tiene asociado un valor (recurso) el cual se debe relacionar en la columna de \"Compromisos\"\n*Un CRP puede estar asociado a varios proyectos de inversión\n*Un CRP puede estar asociado a varios productos\n*Para un mismo trazador, un CRP puede estar asociadado unicamente a una sola subcategoria. Ese mismo CRP, puede estar vinculado a otros trazadores presupuestales.\n"]
[{"$f":"A5+1","v":4},"Un CRP puede estar asociado a más de un trazador presupuestal. En este sentido, los recursos no se suman, toda vez que son indicativos. "]
[{"$f":"A6+1","v":5},"Para los giros, trimestralmente se deben relacionar los valores de manera independiente (No acumular)  y se deben totalizar en la columa \"Total Giros\". "]
[8,"Se debe mantener la infomación registrada con anterioridad para guardar la trazabilidad de la misma. Se deben relacionar valores absolutos ($) y no porcentajes"]
["B","Consideraciones Específicas"]
[1,"A continuación, se relacionan los pasos a seguir para el diligenciamiento del formato: "]
[2,"·          Recursos de inversión: continuar con los siguientes pasos:"]
[null,"ü  En la casilla denominada “Número CRP” debe incluir el número emitido en el certficado de registro presupuestal"]
[null,"ü  En la casilla “Elemento PEP” , relacionar el Elemento PEP según el código MGA acorde con el proyecto de inversión asociada al producto. Ej: PM/0200/0118/45990297772. El  Elemento PEP debe corresponder a los establecidos para la vigencia 2025"]
[null,"ü  En la casilla “Productos PMR” relacionar el código y nombre del producto inscrito en el PMR."]
[null,"ü  Las casillas “Trazador\" e \"Impactos” se encuentran formuladas. De manera que al seleccionar la subcategoría en la casilla \"Codificación Subcategoría\" automaticamente se diligenciarán estas dos casillas.NOTA IMPORTANTE: Las subcategorias seleccionadas en PMR deben ser con impacto indirecto y lo marcan únicamente las EICD. "]
[]
[3,"·          Recursos de Funcionamiento u Operación: continuar con los siguientes pasos:"]
[null,"ü  En la casilla denominada “Código Rubro” debe registrar el código del rubro (Funcionamiento u Operación)."]
[null,"ü  En la casilla denominada “Fecha Expedición CRP(dia/mes/año)” debe incluir la fecha en el formato dia/mes/año"]
[null,"ü  En la casilla denominada “Código Rubro” debe seleccionar de la lista desplegable el tipo de recurso (Funcionamiento u Operación)."]
[null,"ü  En la casilla “Elemento PEP” debe relacionar el código completo del elemento PEP de funcionamiento u operación"]
[null,"ü  Las casillas “Trazador\" e \"Impacto” se encuentran formuladas las subcategorias con impacto directo. De manera que al seleccionar la subcategoría en la casilla \"Codificación Subcategoría\" automaticamente se diligenciarán estas dos casillas. NOTA IMPORTANTE: Las subcategorias seleccionadas en PMR deben ser con impacto directo y lo marcan únicamente las EICD  y FDL"]
[null,"ü  Para el presupuesto de funcionamiento se debe incluir únicamente los compromisos (CRP) que estén destinados en el 100% al trazador."]
[null,"ü  Si un CRP es financiado con recursos de inversión y funcionamiento, únicamente puede ser marcado con impacto directo, dado que la regla establece que los recursos de funcionamiento deben marcarse para este tipo de impacto.\n \nEn este sentido, cuando un CRP con impacto directo es financiado con ambos tipos de recursos, los montos correspondientes al rubro de inversión directa deben ser marcados en SEGPLAN, mientras que los de funcionamiento deben registrarse en BOGDATA."]

{"sheet":"Entidades","index":4,"n_rows":70,"n_cols":10,"rows_kept":70,"cut":false,"hidden":true,"merged":[]}
["Código distrital","Nombre","Sigla","Clasificación","Tipo","Sector BOGDATA",null,null,null,"0001 - FDL Usaquén"]
["0102","Personería Distrital","PD",{"$f":"IF(OR(E2=\"ADMONCENTRAL\",E2=\"ESTAPUBLICOS\"),\"Administración central\",IF(E2=\"IND_COM\",\"Empresas industriales y comerciales\",\"Alcaldías Locales\"))","v":"Administración central"},"ADMONCENTRAL","017 - Otras entidades distritales",{"$f":"A2&\" - \"&B2","v":"0102 - Personería Distrital"},null,null,"0002 - FDL Chapinero"]
["0104","Secretaría General","SGRAL","Administración central","ADMONCENTRAL","001 - Sector Gestión pública",{"$f":"A3&\" - \"&B3","v":"0104 - Secretaría General"},null,null,"0003 - FDL Santa fe"]
["0105","Veeduría Distrital","VD","Administración central","ADMONCENTRAL","017 - Otras entidades distritales","0105 - Veeduría Distrital",null,null,"0004 - FDL San cristóbal"]
["0110","Secretaría Distrital de Gobierno","SDG","Administración central","ADMONCENTRAL","002 - Sector Gobierno","0110 - Secretaría Distrital de Gobierno",null,null,"0005 - FDL Usme"]
["0111","Secretaría Distrital de Hacienda","SDH","Administración central","ADMONCENTRAL","003 - Sector Hacienda","0111 - Secretaría Distrital de Hacienda",null,null,"0006 - FDL Tunjuelito"]
["0112","Secretaría de Educación del Distrito","SED","Administración central","ADMONCENTRAL","006 - Sector Educación","0112 - Secretaría de Educación del Distrito",null,null,"0007 - FDL Bosa"]
["0113","Secretaría Distrital de Movilidad","SDM","Administración central","ADMONCENTRAL","011 - Sector Movilidad","0113 - Secretaría Distrital de Movilidad",null,null,"0008 - FDL Kennedy"]
["0117","Secretaría Distrital de Desarrollo Económico","SDDE","Administración central","ADMONCENTRAL","005 - Sector Desarrollo económico, industria y turismo","0117 - Secretaría Distrital de Desarrollo Económico",null,null,"0009 - FDL Fontibón"]
["0118","Secretaría Distrital del Hábitat","SDHT","Administración central","ADMONCENTRAL","012 - Sector Hábitat","0118 - Secretaría Distrital del Hábitat",null,null,"0010 - FDL Engativá"]
["0119","Secretaría Distrital de Cultura, Recreación y Deporte","SDCRD","Administración central","ADMONCENTRAL","009 - Sector Cultura, recreación y deporte","0119 - Secretaría Distrital de Cultura, Recreación y Deporte",null,null,"0011 - FDL Suba"]
["0120","Secretaría Distrital de Planeación","SDP","Administración central","ADMONCENTRAL","004 - Sector Planeación","0120 - Secretaría Distrital de Planeación",null,null,"0012 - FDL Barrios unidos"]
["0121","Secretaría Distrital de la Mujer","SDMUJER","Administración central","ADMONCENTRAL","013 - Sector Mujeres","0121 - Secretaría Distrital de la Mujer",null,null,"0013 - FDL Teusaquillo"]
["0122","Secretaría Distrital de Integración Social","SDIS","Administración central","ADMONCENTRAL","008 - Sector Integración social","0122 - Secretaría Distrital de Integración Social",null,null,"0014 - FDL Los mártires"]
["0125","Departamento Administrativo del Servicio Civil Distrital","DASCD","Administración central","ADMONCENTRAL","001 - Sector Gestión pública","0125 - Departamento Administrativo del Servicio Civil Distrital",null,null,"0015 - FDL Antonio nariño"]
["0126","Secretaría Distrital de Ambiente","SDA","Administración central","ADMONCENTRAL","010 - Sector Ambiente","0126 - Secretaría Distrital de Ambiente",null,null,"0016 - FDL Puente aranda"]
["0127","Departamento Administrativo de la Defensoría del Espacio Público","DADEP","Administración central","ADMONCENTRAL","002 - Sector Gobierno","0127 - Departamento Administrativo de la Defensoría del Espacio Público",null,null,"0017 - FDL La candelaria"]
["0131","Unidad Administrativa Especial Cuerpo Oficial de Bomberos","UAECOB","Administración central","ADMONCENTRAL","014 - Sector Seguridad, Convivencia y Justicia","0131 - Unidad Administrativa Especial Cuerpo Oficial de Bomberos",null,null,"0018 - FDL Rafael uribe uribe"]
["0136","Secretaría Jurídica Distrital","SJD","Administración central","ADMONCENTRAL","015 - Sector Gestión Jurídica","0136 - Secretaría Jurídica Distrital",null,null,"0019 - FDL Ciudad bolívar"]
["0137","Secretaría Distrital de Seguridad, Convivencia y Justicia","SDSCJ","Administración central","ADMONCENTRAL","014 - Sector Seguridad, Convivencia y Justicia","0137 - Secretaría Distrital de Seguridad, Convivencia y Justicia",null,null,"0020 - FDL Sumapaz"]
["0200","Instituto para la Economía Social","IPES","Administración central","ESTAPUBLICOS","005 - Sector Desarrollo económico, industria y turismo","0200 - Instituto para la Economía Social",null,null,"0240 - Lotería de Bogotá"]
["0201","Secretaría Distrital de Salud / Fondo Financiero Distrital de Salud","SDS/FFDS","Administración central","ESTAPUBLICOS","007 - Sector Salud","0201 - Secretaría Distrital de Salud / Fondo Financiero Distrital de Salud",null,null,"0260 - Canal Capital"]
["0203","Instituto Distrital de Gestión de Riesgos y Cambio Climático","IDIGER","Administración central","ESTAPUBLICOS","010 - Sector Ambiente","0203 - Instituto Distrital de Gestión de Riesgos y Cambio Climático",null,null,"0262 - Empresa de Transporte del Tercer Milenio - Transmilenio S.A."]
["0204","Instituto de Desarrollo Urbano","IDU","Administración central","ESTAPUBLICOS","011 - Sector Movilidad","0204 - Instituto de Desarrollo Urbano",null,null,"0263 - Empresa de Renovación y Desarrollo Urbano"]
["0206","Fondo de Prestaciones Económicas, Cesantías y Pensiones","FONCEP","Administración central","ESTAPUBLICOS","003 - Sector Hacienda","0206 - Fondo de Prestaciones Económicas, Cesantías y Pensiones",null,null,"0265 - Empresa de Acueducto y Alcantarillado de Bogotá"]
["0208","Caja de Vivienda Popular","CVP","Administración central","ESTAPUBLICOS","012 - Sector Hábitat","0208 - Caja de Vivienda Popular",null,null,"0266 - Empresa Metro de Bogotá S.A."]
["0211","Instituto Distrital de Recreación y Deporte","IDRD","Administración central","ESTAPUBLICOS","009 - Sector Cultura, recreación y deporte","0211 - Instituto Distrital de Recreación y Deporte"]
["0213","Instituto Distrital del Patrimonio Cultural","IDPC","Administración central","ESTAPUBLICOS","009 - Sector Cultura, recreación y deporte","0213 - Instituto Distrital del Patrimonio Cultural"]
["0214","Instituto Distrital para la Protección de la Niñez y la Juventud","IDIPRON","Administración central","ESTAPUBLICOS","008 - Sector Integración social","0214 - Instituto Distrital para la Protección de la Niñez y la Juventud"]
["0215","Fundación Gilberto Alzate Avendaño","FUGA","Administración central","ESTAPUBLICOS","009 - Sector Cultura, recreación y deporte","0215 - Fundación Gilberto Alzate Avendaño"]
["0216","Orquesta Filarmónica de Bogotá","OFB","Administración central","ESTAPUBLICOS","009 - Sector Cultura, recreación y deporte","0216 - Orquesta Filarmónica de Bogotá"]
["0217","Fondo de Vigilancia y Seguridad","FVS","Administración central","ESTAPUBLICOS","014 - Sector Seguridad, Convivencia y Justicia","0217 - Fondo de Vigilancia y Seguridad"]
["0218","Jardín Botánico José Celestino Mutis","JB-JCM","Administración central","ESTAPUBLICOS","010 - Sector Ambiente","0218 - Jardín Botánico José Celestino Mutis"]
["0219","Instituto para la Investigación Educativa y el Desarrollo Pedagógico","IDEP","Administración central","ESTAPUBLICOS","006 - Sector Educación","0219 - Instituto para la Investigación Educativa y el Desarrollo Pedagógico"]
["0220","Instituto Distrital de la Participación y Acción Comunal","IDPAC","Administración central","ESTAPUBLICOS","002 - Sector Gobierno","0220 - Instituto Distrital de la Participación y Acción Comunal"]
["0221","Instituto Distrital de Turismo","IDT","Administración central","ESTAPUBLICOS","005 - Sector Desarrollo económico, industria y turismo","0221 - Instituto Distrital de Turismo"]
["0222","Instituto Distrital de las Artes","IDARTES","Administración central","ESTAPUBLICOS","009 - Sector Cultura, recreación y deporte","0222 - Instituto Distrital de las Artes"]
["0226","Unidad Administrativa Especial de Catastro Distrital","UAECD","Administración central","ESTAPUBLICOS","003 - Sector Hacienda","0226 - Unidad Administrativa Especial de Catastro Distrital"]
["0227","Unidad Administrativa Especial de Rehabilitación y Mantenimiento Vial","UAERMV","Administración central","ESTAPUBLICOS","011 - Sector Movilidad","0227 - Unidad Administrativa Especial de Rehabilitación y Mantenimiento Vial"]
["0228","Unidad Administrativa Especial de Servicios Públicos","UAESP","Administración central","ESTAPUBLICOS","012 - Sector Hábitat","0228 - Unidad Administrativa Especial de Servicios Públicos"]
["0229","Instituto Distrital de Protección y Bienestar Animal","IDPYBA","Administración central","ESTAPUBLICOS","010 - Sector Ambiente","0229 - Instituto Distrital de Protección y Bienestar Animal"]
["0230","Universidad Distrital Francisco José de Caldas","UD-FJC","Administración central","ESTAPUBLICOS","006 - Sector Educación","0230 - Universidad Distrital Francisco José de Caldas"]
["0235","Contraloría Distrital","CD","Administración central","ESTAPUBLICOS","017 - Otras entidades distritales","0235 - Contraloría Distrital"]
["0240","Lotería de Bogotá","LB","Empresas industriales y comerciales","IND_COM","003 - Sector Hacienda","0240 - Lotería de Bogotá"]
["0260","Canal Capital","CC","Empresas industriales y comerciales","IND_COM","009 - Sector Cultura, recreación y deporte","0260 - Canal Capital"]
["0262","Empresa de Transporte del Tercer Milenio - Transmilenio S.A.","TMSA","Empresas industriales y comerciales","IND_COM","011 - Sector Movilidad","0262 - Empresa de Transporte del Tercer Milenio - Transmilenio S.A."]
["0263","Empresa de Renovación y Desarrollo Urbano","ERU","Empresas industriales y comerciales","IND_COM","012 - Sector Hábitat","0263 - Empresa de Renovación y Desarrollo Urbano"]
["0265","Empresa de Acueducto y Alcantarillado de Bogotá","EAAB","Empresas industriales y comerciales","IND_COM","012 - Sector Hábitat","0265 - Empresa de Acueducto y Alcantarillado de Bogotá"]
["0266","Empresa Metro de Bogotá S.A.","EMB","Empresas industriales y comerciales","IND_COM","011 - Sector Movilidad","0266 - Empresa Metro de Bogotá S.A."]
["0501","Agencia Distrital para la Educación Superior, la Ciencia y la Tecnología","ATENEA","Administración central","ESTAPUBLICOS","006 - Sector Educación","0501 - Agencia Distrital para la Educación Superior, la Ciencia y la Tecnología"]
["0001",{"$f":"\"Alcaldía Local de \" & PROPER(C51)","v":"Alcaldía Local de Usaquén"},"USAQUÉN",{"$f":"IF(OR(E51=\"ADMONCENTRAL\",E51=\"ESTAPUBLICOS\"),\"Administración central\",IF(E51=\"IND_COM\",\"Empresas industriales y comerciales\",\"Alcaldías Locales\"))","v":"Alcaldías Locales"},"LOCALIDAD","016 - Localidades",{"$f":"A51&\" - FDL \"&LEFT(C51,1)&LOWER(MID(C51,2,100))","v":"0001 - FDL Usaquén"}]
["0002","Alcaldía Local de Chapinero","CHAPINERO",{"$f":"IF(OR(E52=\"ADMONCENTRAL\",E52=\"ESTAPUBLICOS\"),\"Administración central\",IF(E52=\"IND_COM\",\"Empresas industriales y comerciales\",\"Alcaldías Locales\"))","v":"Alcaldías Locales"},"LOCALIDAD","016 - Localidades",{"$f":"A52&\" - FDL \"&LEFT(C52,1)&LOWER(MID(C52,2,100))","v":"0002 - FDL Chapinero"}]
["0003","Alcaldía Local de Santa Fe","SANTA FE","Alcaldías Locales","LOCALIDAD","016 - Localidades","0003 - FDL Santa fe"]
["0004","Alcaldía Local de San Cristóbal","SAN CRISTÓBAL","Alcaldías Locales","LOCALIDAD","016 - Localidades","0004 - FDL San cristóbal"]
["0005","Alcaldía Local de Usme","USME","Alcaldías Locales","LOCALIDAD","016 - Localidades","0005 - FDL Usme"]
["0006","Alcaldía Local de Tunjuelito","TUNJUELITO","Alcaldías Locales","LOCALIDAD","016 - Localidades","0006 - FDL Tunjuelito"]
["0007","Alcaldía Local de Bosa","BOSA","Alcaldías Locales","LOCALIDAD","016 - Localidades","0007 - FDL Bosa"]
["0008","Alcaldía Local de Kennedy","KENNEDY","Alcaldías Locales","LOCALIDAD","016 - Localidades","0008 - FDL Kennedy"]
["0009","Alcaldía Local de Fontibón","FONTIBÓN","Alcaldías Locales","LOCALIDAD","016 - Localidades","0009 - FDL Fontibón"]
["0010","Alcaldía Local de Engativá","ENGATIVÁ","Alcaldías Locales","LOCALIDAD","016 - Localidades","0010 - FDL Engativá"]
["0011","Alcaldía Local de Suba","SUBA","Alcaldías Locales","LOCALIDAD","016 - Localidades","0011 - FDL Suba"]
["0012","Alcaldía Local de Barrios Unidos","BARRIOS UNIDOS","Alcaldías Locales","LOCALIDAD","016 - Localidades","0012 - FDL Barrios unidos"]
["0013",{"$f":"\"Alcaldía Local de \" & PROPER(C63)","v":"Alcaldía Local de Teusaquillo"},"TEUSAQUILLO","Alcaldías Locales","LOCALIDAD","016 - Localidades","0013 - FDL Teusaquillo"]
["0014",{"$f":"\"Alcaldía Local de \" & PROPER(C64)","v":"Alcaldía Local de Los Mártires"},"LOS MÁRTIRES","Alcaldías Locales","LOCALIDAD","016 - Localidades","0014 - FDL Los mártires"]
["0015","Alcaldía Local de Antonio Nariño","ANTONIO NARIÑO","Alcaldías Locales","LOCALIDAD","016 - Localidades","0015 - FDL Antonio nariño"]
["0016","Alcaldía Local de Puente Aranda","PUENTE ARANDA","Alcaldías Locales","LOCALIDAD","016 - Localidades","0016 - FDL Puente aranda"]
["0017","Alcaldía Local de La Candelaria","LA CANDELARIA","Alcaldías Locales","LOCALIDAD","016 - Localidades","0017 - FDL La candelaria"]
["0018","Alcaldía Local de Rafael Uribe Uribe","RAFAEL URIBE URIBE","Alcaldías Locales","LOCALIDAD","016 - Localidades","0018 - FDL Rafael uribe uribe"]
["0019","Alcaldía Local de Ciudad Bolívar","CIUDAD BOLÍVAR","Alcaldías Locales","LOCALIDAD","016 - Localidades","0019 - FDL Ciudad bolívar"]
["0020","Alcaldía Local de Sumapaz","SUMAPAZ","Alcaldías Locales","LOCALIDAD","016 - Localidades","0020 - FDL Sumapaz"]

{"sheet":"Tablas Listas Desplegables","index":5,"n_rows":122,"n_cols":24,"rows_kept":122,"cut":false,"hidden":true,"merged":[[0,14,0,15],[0,2,0,3],[0,4,0,5],[0,6,0,7],[0,8,0,9],[0,10,0,11],[0,12,0,13]]}
["Tipo (Inversión- funcionamiento-Operación)",null,"TPPIIA",null,"TPCC",null,"TPGE",null,"TPIEG",null,"TPJ",null,"TPPD",null,"TPCP",null,null,null,null,null,"Mes","Periodo",null,"Entidad"]
["Inversión",null,"DIRECTO","INDIRECTO","DIRECTO","INDIRECTO","DIRECTO","INDIRECTO","DIRECTO","INDIRECTO","DIRECTO","INDIRECTO","DIRECTO","INDIRECTO","DIRECTO","INDIRECTO",null,"01 - FDL Usaquén","0102 - Personería Distrital","0240 - Lotería de Bogotá","Enero","Enero a Marzo",null,"01 - FDL Usaquén"]
["Funcionamiento",null,"TPPIIA(IDA).Directo-C01.01.Salud.","TPPIIA(IIA).Indirecto-C02.01.Salud.","TPCC(CDA).Directo-C01.01.Investigación y experimentación para la transformación cultural y comportamental.","TPCC(CIA).Indirecto-C01.02.Investigación y experimentación para la transformación cultural y comportamental.","TPGE(EAA).Directo-C01.01.Prácticas culturales con enfoque étnico diferencial.","TPGE(EAI).Indirecto-C01.09.Prácticas culturales con enfoque étnico diferencial.","TPIEG(GDA).Directo-C01.01.Empleabilidad y acceso al trabajo.","TPIEG(GIA).Indirecto-C01.01.Empleabilidad y acceso al trabajo.","TPJ(JDA).Directo-C01.01.Acceso de jóvenes a servicios de ingreso renta básica y/o programas de subsidios económicos y en especie para jóvenes.","TPJ(JIA).Indirecto-C01.02.Acceso de jóvenes a servicios de ingreso renta básica y/o programas de subsidios económicos y en especie para jóvenes.","TPPD(DDA).Directo-C01.01.Acompañamiento a la atención integral en salud.","TPPD(DIA).Indirecto-C01.02.Acompañamiento a la atención integral en salud.","TPCP(PDA).Directo-C01.01.Fortalecimiento institucional para la construcción de la memoria, la paz, la reconciliación y la reparación integral.","TPCP(PIA).Indirecto-C01.02.Fortalecimiento institucional para la construcción de la memoria, la paz, la reconciliación y la reparación integral.",null,"02 - FDL Chapinero","0104 - Secretaría General","0260 - Canal Capital","Febrero","Abril a Junio",null,"02 - FDL Chapinero"]
["Operación",null,"TPPIIA(IDB).Directo-C01.02.Crianza y cuidado.","TPPIIA(IIB).Indirecto-C02.02.Crianza y cuidado.","TPCC(CDB).Directo-C01.03.Evaluación y monitoreo del cambio cultural y comportamental.","TPCC(CIB).Indirecto-C01.04.Evaluación y monitoreo del cambio cultural y comportamental.","TPGE(EAB).Directo-C01.02.Autonomía étnica y gobierno propio.","TPGE(EAJ).Indirecto-C01.10.Autonomía étnica y gobierno propio.","TPIEG(GDB).Directo-C01.02.Emprendimiento económico.","TPIEG(GIB).Indirecto-C01.02.Emprendimiento económico.","TPJ(JDB).Directo-C01.03.Reconocimiento de diversidad, participación, incidencia y dinámicas territoriales e inclusión social.","TPJ(JIB).Indirecto-C01.04.Reconocimiento de diversidad, participación, incidencia y dinámicas territoriales e inclusión social.","TPPD(DDB).Directo-C01.03.Red de Cuidado colectivo – Rehabilitación Basada en Comunidad (RBC).","TPPD(DIB).Indirecto-C01.04.Red de Cuidado colectivo – Rehabilitación Basada en Comunidad (RBC).","TPCP(PDB).Directo-C01.03.Gestión territorial para la construcción de Paz.","TPCP(PIB).Indirecto-C01.04.Gestión territorial para la construcción de Paz.",null,"03 - FDL Santa fe","0105 - Veeduría Distrital","0262 - Empresa de Transporte del Tercer Milenio - Transmilenio S.A.","Marzo","Julio a Septiembre",null,"03 - FDL Santa fe"]
[null,null,"TPPIIA(IDC).Directo-C01.03.Salud mental y bienestar emocional.","TPPIIA(IIC).Indirecto-C02.03.Salud mental y bienestar emocional.","TPCC(CDC).Directo-C01.05.Divulgación del conocimiento cultural y comportamental.","TPCC(CIC).Indirecto-C01.06.Divulgación del conocimiento cultural y comportamental.","TPGE(EAC).Directo-C01.03.Educación diferencial.","TPGE(EAK).Indirecto-C01.11.Educación diferencial.","TPIEG(GDC).Directo-C01.03.Transferencias y provisión de servicios públicos.","TPIEG(GIC).Indirecto-C01.03.Transferencias y provisión de servicios públicos.","TPJ(JDC).Directo-C02.05.Acceso, pertinencia y fortalecimiento a la educación básica, media y posmedia de calidad, con acceso a tecnologías de la información y bilingüismo.","TPJ(JIC).Indirecto-C02.06.Acceso, pertinencia y fortalecimiento a la educación básica, media y posmedia de calidad, con acceso a tecnologías de la información y bilingüismo.","TPPD(DDC).Directo-C02.05.Permanencia y calidad en el sistema educativo.","TPPD(DIC).Indirecto-C02.06.Permanencia y calidad en el sistema educativo.","TPCP(PDC).Directo-C01.05.Convivencia y Seguridad Territorial.","TPCP(PIC).Indirecto-C01.06.Convivencia y Seguridad Territorial.",null,"04 - FDL San Cristóbal","0110 - Secretaría Distrital de Gobierno","0263 - Empresa de Renovación y Desarrollo Urbano","Abril","Octubre a Diciembre",null,"04 - FDL San cristóbal"]
[null,null,"TPPIIA(IDD).Directo-C01.04.Derecho humano a la alimentación.","TPPIIA(IID).Indirecto-C02.04.Derecho humano a la alimentación.","TPCC(CDD).Directo-C02.07.Fomento a iniciativas ciudadanas para la transformación cultural y comportamental.","TPCC(CID).Indirecto-C02.08.Fomento a iniciativas ciudadanas para la transformación cultural y comportamental.","TPGE(EAD).Directo-C01.04.Medicina ancestral y tradicional.","TPGE(EAL).Indirecto-C01.12.Medicina ancestral y tradicional.","TPIEG(GDD).Directo-C01.90.Transformación de imaginarios para la igualdad.","TPIEG(GID).Indirecto-C01.90.Transformación de imaginarios para la igualdad.","TPJ(JDD).Directo-C02.07.Permanencia en educación posmedia.","TPJ(JID).Indirecto-C02.08.Permanencia en educación posmedia.","TPPD(DDD).Directo-C02.07.Acceso a educación superior.","TPPD(DID).Indirecto-C02.08.Acceso a educación superior.","TPCP(PDD).Directo-C01.07.Infraestructura para la memoria, la paz, la reconciliación y la reparación integral.","TPCP(PID).Indirecto-C01.08.Infraestructura para la memoria, la paz, la reconciliación y la reparación integral.",null,"05 - FDL Usme","0111 - Secretaría Distrital de Hacienda","0265 - Empresa de Acueducto y Alcantarillado de Bogotá","Mayo",null,null,"05 - FDL Usme"]
[null,null,"TPPIIA(IDE).Directo-C01.05.Ambiente sano.","TPPIIA(IIE).Indirecto-C02.05.Ambiente sano.","TPCC(CDE).Directo-C02.09.Comunicaciones y narrativas para la transformación cultural y comportamental.","TPCC(CIE).Indirecto-C02.10.Comunicaciones y narrativas para la transformación cultural y comportamental.","TPGE(EAE).Directo-C01.05.Economía propia.","TPGE(EAM).Indirecto-C01.13.Economía propia.","TPIEG(GDG).Directo-C02.02.Representación política.","TPIEG(GIG).Indirecto-C02.02.Representación política.","TPJ(JDE).Directo-C02.09.Actividades de educación, sensibilización y gestión ambiental, y fomento de la protección del bienestar animal.","TPJ(JIE).Indirecto-C02.10.Actividades de educación, sensibilización y gestión ambiental, y fomento de la protección del bienestar animal.","TPPD(DDE).Directo-C03.09.Inclusión social integral.","TPPD(DIE).Indirecto-C03.10.Inclusión social integral.","TPCP(PDE).Directo-C02.09.Fortalecimiento de capacidades en reconciliación.","TPCP(PIE).Indirecto-C02.10.Fortalecimiento de capacidades en reconciliación.",null,"06 - FDL Tunjuelito","0112 - Secretaría de Educación del Distrito","0266 - Empresa Metro de Bogotá S.A.","Junio",null,null,"06 - FDL Tunjuelito"]
[null,null,"TPPIIA(IDF).Directo-C02.01.Oferta educativa inclusiva y de calidad.","TPPIIA(IIF).Indirecto-C03.01.Oferta educativa inclusiva y de calidad.","TPCC(CDF).Directo-C02.11.Fortalecimiento de capacidades y conocimientos para la transformación cultural y comportamental.","TPCC(CIF).Indirecto-C02.12.Fortalecimiento de capacidades y conocimientos para la transformación cultural y comportamental.","TPGE(EAF).Directo-C01.06.Adecuación institucional y lucha contra el racismo y la discriminación.","TPGE(EAN).Indirecto-C01.14.Adecuación institucional y lucha contra el racismo y la discriminación.","TPIEG(GD1).Directo-C02.03.Ciudadanía activa promovida a través de la construcción de capacidades culturales.","TPIEG(GI1).Indirecto-C02.03.Ciudadanía activa promovida a través de la construcción de capacidades culturales.","TPJ(JDF).Directo-C03.11.Empleabilidad y acceso al trabajo.","TPJ(JIF).Indirecto-C03.12.Empleabilidad y acceso al trabajo.","TPPD(DDF).Directo-C03.11.Organizaciones de y para Personas con Discapacidad.","TPPD(DIF).Indirecto-C03.12.Organizaciones de y para Personas con Discapacidad.","TPCP(PDF).Directo-C02.11.Cultura, arte, recreación y deporte transformador para la reconciliación.","TPCP(PIF).Indirecto-C02.12.Cultura, arte, recreación y deporte transformador para la reconciliación.",null,"07 - FDL Bosa","0113 - Secretaría Distrital de Movilidad","0501 - Agencia Distrital para la Educación Superior, la Ciencia y la Tecnología","Julio",null,null,"07 - FDL Bosa"]
[null,null,"TPPIIA(IDG).Directo-C02.02.Ampliación de la cobertura (educación inicial-primaria y secundaria).","TPPIIA(IIG).Indirecto-C03.02.Ampliación de la cobertura (educación inicial-primaria y secundaria).","TPCC(CDG).Directo-C02.13.Intervenciones estéticas y creativas para la transformación cultural y comportamental.","TPCC(CIG).Indirecto-C02.14.Intervenciones estéticas y creativas para la transformación cultural y comportamental.","TPGE(EAG).Directo-C01.07.Calidad de vida.","TPGE(EAO).Indirecto-C01.15.Calidad de vida.","TPIEG(GDH).Directo-C02.90.Transformación de imaginarios para la igualdad.","TPIEG(GIH).Indirecto-C02.90.Transformación de imaginarios para la igualdad.","TPJ(JDG).Directo-C03.13.Desarrollo y emprendimiento sostenible.","TPJ(JIG).Indirecto-C03.14.Desarrollo y emprendimiento sostenible.","TPPD(DDG).Directo-C03.13.Acceso a la justicia y capacidad jurídica.","TPPD(DIG).Indirecto-C03.14.Acceso a la justicia y capacidad jurídica.","TPCP(PDG).Directo-C02.13.No estigmatización para la reconciliación.","TPCP(PIG).Indirecto-C02.14.No estigmatización para la reconciliación.",null,"08 - FDL Kennedy","0117 - Secretaría Distrital de Desarrollo Económico",null,"Agosto",null,null,"08 - FDL Kennedy"]
[null,null,"TPPIIA(IDH).Directo-C02.03.Acceso y permanencia.","TPPIIA(IIH).Indirecto-C03.03.Acceso y permanencia.","TPCC(CDH).Directo-C02.15.Escenarios de diálogo y co creación.","TPCC(CIH).Indirecto-C02.16.Escenarios de diálogo y co creación.","TPGE(EAH).Directo-C01.08.Mujeres.","TPGE(EAP).Indirecto-C01.16.Mujeres.","TPIEG(GDJ).Directo-C03.01.Prevención y atención en Salud.","TPIEG(GIJ).Indirecto-C03.01.Prevención y atención en Salud.","TPJ(JDH).Directo-C04.15.Accesos a servicios de salud, salud mental, salud sexual, derechos sexuales y reproductivos y prevención de la paternidad y maternidad temprana.","TPJ(JIH).Indirecto-C04.16.Accesos a servicios de salud, salud mental, salud sexual, derechos sexuales y reproductivos y prevención de la paternidad y maternidad temprana.","TPPD(DDH).Directo-C04.15.Vinculación laboral de Personas con Discapacidad.","TPPD(DIH).Indirecto-C04.16.Vinculación laboral de Personas con Discapacidad.","TPCP(PDH).Directo-C02.15.Integración comunitaria de las víctimas del conflicto armado para la reconciliación.","TPCP(PIH).Indirecto-C02.16.Integración comunitaria de las víctimas del conflicto armado para la reconciliación.",null,"09 - FDL Fontibón","0118 - Secretaría Distrital del Hábitat",null,"Septiembre",null,null,"09 - FDL Fontibón"]
[null,null,"TPPIIA(IDI).Directo-C02.04.Infraestructura y ambientes adecuados y seguros.","TPPIIA(III).Indirecto-C03.04.Infraestructura y ambientes adecuados y seguros.","TPCC(CDI).Directo-C03.17.Sistemas de información cultural y comportamental.","TPCC(CII).Indirecto-C03.18.Sistemas de información cultural y comportamental.","TPGE(EBA).Directo-C02.01.Prácticas culturales con enfoque étnico diferencial.","TPGE(EBI).Indirecto-C02.09.Prácticas culturales con enfoque étnico diferencial.","TPIEG(GDK).Directo-C03.02.Derechos sexuales y reproductivos.","TPIEG(GIK).Indirecto-C03.02.Derechos sexuales y reproductivos.","TPJ(JDI).Directo-C04.17.Prevención y atención de consumo de alcohol y sustancias psicoactivas.","TPJ(JII).Indirecto-C04.18.Prevención y atención de consumo de alcohol y sustancias psicoactivas.","TPPD(DDI).Directo-C05.17.Comunicación incluyente y accesible.","TPPD(DII).Indirecto-C05.18.Comunicación incluyente y accesible.","TPCP(PDI).Directo-C03.17.Garantía de derechos.","TPCP(PII).Indirecto-C03.18.Garantía de derechos.",null,"10 - FDL Engativá","0119 - Secretaría Distrital de Cultura, Recreación y Deporte",null,"Octubre",null,null,"10 - FDL Engativá"]
[null,null,"TPPIIA(IDJ).Directo-C02.05.Ciencia y tecnología.","TPPIIA(IIJ).Indirecto-C03.05.Ciencia y tecnología.","TPCC(CDJ).Directo-C03.19.Talento humano o apoyo a la gestión de la cultura ciudadana.","TPCC(CIJ).Indirecto-C03.20.Talento humano o apoyo a la gestión de la cultura ciudadana.","TPGE(EBB).Directo-C02.02.Autonomía étnica y gobierno propio.","TPGE(EBJ).Indirecto-C02.10.Autonomía étnica y gobierno propio.","TPIEG(GDL).Directo-C03.90.Transformación de imaginarios para la igualdad.","TPIEG(GIL).Indirecto-C03.90.Transformación de imaginarios para la igualdad.","TPJ(JDJ).Directo-C05.19.Actividades de apreciación, creación, producción y estímulos culturales .","TPJ(JIJ).Indirecto-C05.20.Actividades de apreciación, creación, producción y estímulos culturales .","TPPD(DDJ).Directo-C05.19.Movilidad y entornos accesibles e inclusivos.","TPPD(DIJ).Indirecto-C05.20.Movilidad y entornos accesibles e inclusivos.","TPCP(PDJ).Directo-C03.19.Sostenibilidad Económica.","TPCP(PIJ).Indirecto-C03.20.Sostenibilidad Económica.",null,"11 - FDL Suba","0120 - Secretaría Distrital de Planeación",null,"Noviembre",null,null,"11 - FDL Suba"]
[null,null,"TPPIIA(IDK).Directo-C03.01.Sexualidad autónoma y responsable.","TPPIIA(IIK).Indirecto-C03.01.Sexualidad autónoma y responsable.",null,null,"TPGE(EBC).Directo-C02.03.Educación diferencial.","TPGE(EBK).Indirecto-C02.11.Educación diferencial.","TPIEG(GDN).Directo-C04.01.Educación y profesionalización con equidad.","TPIEG(GIN).Indirecto-C04.01.Educación y profesionalización con equidad.","TPJ(JDK).Directo-C05.21.Fomento de hábitos de lectura e intercambio de saberes con enfoque diferencial y poblacional.","TPJ(JIK).Indirecto-C05.22.Fomento de hábitos de lectura e intercambio de saberes con enfoque diferencial y poblacional.","TPPD(DDK).Directo-C05.21.Vivienda digna y accesible.","TPPD(DIK).Indirecto-C05.22.Vivienda digna y accesible.","TPCP(PDK).Directo-C04.21.Educación y Pedagogía en el Sistema Integral de Paz.","TPCP(PIK).Indirecto-C04.22.Educación y Pedagogía en el Sistema Integral de Paz.",null,"12 - FDL Barrios Unidos","0121 - Secretaría Distrital de la Mujer",null,"Diciembre",null,null,"12 - FDL Barrios unidos"]
[null,null,"TPPIIA(IDL).Directo-C03.02.Atenciones diferenciales etnia y género.","TPPIIA(IIL).Indirecto-C04.02.Atenciones diferenciales etnia y género.",null,null,"TPGE(EBD).Directo-C02.04.Medicina ancestral y tradicional.","TPGE(EBL).Indirecto-C02.12.Medicina ancestral y tradicional.","TPIEG(GDO).Directo-C04.02.Acceso, uso y apropiación de las TIC.","TPIEG(GIO).Indirecto-C04.02.Acceso, uso y apropiación de las TIC.","TPJ(JDL).Directo-C05.23.Actividades recreativas y procesos de formación deportiva para jóvenes.","TPJ(JIL).Indirecto-C05.24.Actividades recreativas y procesos de formación deportiva para jóvenes.","TPPD(DDL).Directo-C05.23.Prácticas culturales, artísticas, recreativas y deportivas accesibles e incluyentes.","TPPD(DIL).Indirecto-C05.24.Prácticas culturales, artísticas, recreativas y deportivas accesibles e incluyentes.","TPCP(PDL).Directo-C04.23.Justicia Restaurativa.","TPCP(PIL).Indirecto-C04.24.Justicia Restaurativa.",null,"13 - FDL Ciudad Bolivar","0122 - Secretaría Distrital de Integración Social",null,null,null,null,"13 - FDL Teusaquillo"]
[null,null,"TPPIIA(IDM).Directo-C03.03.Atenciones diferenciales a población migrante y víctimas del conflicto armado, hijos e hijas de los firmantes de la paz, excombatientes, reintegrados y reincorporados.","TPPIIA(IIM).Indirecto-C04.03.Atenciones diferenciales a población migrante y víctimas del conflicto armado, hijos e hijas de los firmantes de la paz, excombatientes, reintegrados y reincorporados.",null,null,"TPGE(EBE).Directo-C02.05.Economía propia.","TPGE(EBM).Indirecto-C02.13.Economía propia.","TPIEG(GDP).Directo-C04.90.Transformación de imaginarios para la igualdad.","TPIEG(GIP).Indirecto-C04.90.Transformación de imaginarios para la igualdad.","TPJ(JDM).Directo-C06.25.Promoción de entornos seguros.","TPJ(JIM).Indirecto-C06.26.Promoción de entornos seguros.","TPPD(DDM).Directo-C06.25.Servicios integrales para cuidadoras/es de Personas con Discapacidad.","TPPD(DIM).Indirecto-C06.26.Servicios integrales para cuidadoras/es de Personas con Discapacidad.","TPCP(PDM).Directo-C04.25.Territorialización del legado de la CEV y sus recomendaciones.","TPCP(PIM).Indirecto-C04.26.Territorialización del legado de la CEV y sus recomendaciones.",null,"14 - FDL Mártires","0125 - Departamento Administrativo del Servicio Civil Distrital",null,null,null,null,"14 - FDL Los mártires"]
[null,null,"TPPIIA(IDN).Directo-C03.04.Atenciones diferenciales a la niñez rural.","TPPIIA(IIN).Indirecto-C05.04.Atenciones diferenciales a la niñez rural.",null,null,"TPGE(EBF).Directo-C02.06.Adecuación institucional y lucha contra el racismo y la discriminación.","TPGE(EBN).Indirecto-C02.14.Adecuación institucional y lucha contra el racismo y la discriminación.","TPIEG(GDR).Directo-C05.01.Protección y atención a mujeres víctimas.","TPIEG(GIR).Indirecto-C05.01.Protección y atención a mujeres víctimas.","TPJ(JDN).Directo-C06.27.Acceso y promoción de la justicia, convivencia para la construcción de paz y reconciliación.","TPJ(JIN).Indirecto-C06.28.Acceso y promoción de la justicia, convivencia para la construcción de paz y reconciliación.","TPPD(DDN).Directo-C06.27.Productividad y empleabilidad para Cuidadores/as de Personas con Discapacidad.","TPPD(DIN).Indirecto-C06.28.Productividad y empleabilidad para Cuidadores/as de Personas con Discapacidad.","TPCP(PDN).Directo-C04.27.Acciones de sensibilización y pedagogía social sobre la búsqueda de personas dadas por desaparecidas en Bogotá-Región.","TPCP(PIN).Indirecto-C04.28.Acciones de sensibilización y pedagogía social sobre la búsqueda de personas dadas por desaparecidas en Bogotá-Región.",null,"15 - FDL Antonio Nariño","0126 - Secretaría Distrital de Ambiente",null,null,null,null,"15 - FDL Antonio nariño"]
[null,null,"TPPIIA(IDO).Directo-C03.05.Desarrollo de capacidades e inclusión social de niñas, niños y adolescentes con discapacidad.","TPPIIA(IIO).Indirecto-C05.05.Desarrollo de capacidades e inclusión social de niñas, niños y adolescentes con discapacidad.",null,null,"TPGE(EBG).Directo-C02.07.Calidad de vida.","TPGE(EBO).Indirecto-C02.15.Calidad de vida.","TPIEG(GDS).Directo-C05.02.Acceso a la justicia.","TPIEG(GIS).Indirecto-C05.02.Acceso a la justicia.","TPJ(JDO).Directo-C06.29.Sistema de Responsabilidad Penal Adolescente (SRPA) y reincorporación social de los jóvenes que egresan del Sistema Penal y Acusatorio carcelario.","TPJ(JIO).Indirecto-C06.30.Sistema de Responsabilidad Penal Adolescente (SRPA) y reincorporación social de los jóvenes que egresan del Sistema Penal y Acusatorio carcelario.",null,null,null,null,null,"16 - FDL Puente Aranda","0127 - Departamento Administrativo de la Defensoría del Espacio Público",null,null,null,null,"16 - FDL Puente aranda"]
[null,null,"TPPIIA(IDP).Directo-C03.06.Derecho a la identidad mediante expedición de documento de identidad.","TPPIIA(IIP).Indirecto-C05.06.Derecho a la identidad mediante expedición de documento de identidad.",null,null,"TPGE(EBH).Directo-C02.08.Mujeres.","TPGE(EBP).Indirecto-C02.16.Mujeres.","TPIEG(GDT).Directo-C05.03.Construcción de paz.","TPIEG(GIT).Indirecto-C05.03.Construcción de paz.","TPJ(JDP).Directo-C07.31.Mejoramiento e innovación social para el hábitat y acceso a la oferta de vivienda.","TPJ(JIP).Indirecto-C07.32.Mejoramiento e innovación social para el hábitat y acceso a la oferta de vivienda.",null,null,null,null,null,"17 - FDL Candelaria","0131 - Unidad Administrativa Especial Cuerpo Oficial de Bomberos",null,null,null,null,"17 - FDL La candelaria"]
[null,null,"TPPIIA(IDQ).Directo-C05.01.Generación de acciones que promuevan la participación infantil significativa.","TPPIIA(IIQ).Indirecto-C06.01.Generación de acciones que promuevan la participación infantil significativa.",null,null,"TPGE(ECA).Directo-C03.01.Prácticas culturales con enfoque étnico diferencial.","TPGE(ECI).Indirecto-C03.09.Prácticas culturales con enfoque étnico diferencial.","TPIEG(GDU).Directo-C05.90.Transformación de imaginarios para la igualdad.","TPIEG(GIU).Indirecto-C05.90.Transformación de imaginarios para la igualdad.","TPJ(JDQ).Directo-C07.33.Acciones en la promoción de uso de transporte público sostenible para la movilidad segura.","TPJ(JIQ).Indirecto-C07.34.Acciones en la promoción de uso de transporte público sostenible para la movilidad segura.",null,null,null,null,null,"18 - FDL Rafael Uribe","0136 - Secretaría Jurídica Distrital",null,null,null,null,"18 - FDL Rafael uribe uribe"]
[null,null,"TPPIIA(IDR).Directo-C06.01.Prevención de vulneraciones e inobservancias de derechos.","TPPIIA(IIR).Indirecto-C06.01.Prevención de vulneraciones e inobservancias de derechos.",null,null,"TPGE(ECB).Directo-C03.02.Autonomía étnica y gobierno propio.","TPGE(ECJ).Indirecto-C03.10.Autonomía étnica y gobierno propio.","TPIEG(GDW).Directo-C90.01.Reducción del tiempo de trabajo de cuidado no remunerado.","TPIEG(GIW).Indirecto-C90.01.Reducción del tiempo de trabajo de cuidado no remunerado.",null,null,null,null,null,null,null,"19 - FDL Ciudad Bolivar","0137 - Secretaría Distrital de Seguridad, Convivencia y Justicia",null,null,null,null,"19 - FDL Ciudad bolívar"]
[null,null,"TPPIIA(IDS).Directo-C06.02.Acciones orientadas a la protección social e inclusión social de niñas, niños y adolescentes.","TPPIIA(IIS).Indirecto-C07.02.Acciones orientadas a la protección social e inclusión social de niñas, niños y adolescentes.",null,null,"TPGE(ECC).Directo-C03.03.Educación diferencial.","TPGE(ECK).Indirecto-C03.11.Educación diferencial.","TPIEG(GDX).Directo-C90.02.Reconocimiento del trabajo de cuidado.","TPIEG(GIX).Indirecto-C90.02.Reconocimiento del trabajo de cuidado.",null,null,null,null,null,null,null,"20 - FDL Sumapaz","0200 - Instituto para la Economía Social",null,null,null,null,"20 - FDL Sumapaz"]
[null,null,"TPPIIA(IDT).Directo-C07.01.Programas de promoción de actividades para el ocio, recreación y uso creativo del tiempo libre.","TPPIIA(IIT).Indirecto-.01.Programas de promoción de actividades para el ocio, recreación y uso creativo del tiempo libre.",null,null,"TPGE(ECD).Directo-C03.04.Medicina ancestral y tradicional.","TPGE(ECL).Indirecto-C03.12.Medicina ancestral y tradicional.","TPIEG(GDY).Directo-C90.90.Transformación de imaginarios para la igualdad.","TPIEG(GIY).Indirecto-C90.90.Transformación de imaginarios para la igualdad.",null,null,null,null,null,null,null,"0102 - Personería Distrital","0201 - Secretaría Distrital de Salud / Fondo Financiero Distrital de Salud",null,null,null,null,"0240 - Lotería de Bogotá"]
[null,null,"TPPIIA(IDU).Directo-.02.Diseño, construcción y dotación de infraestructura de escenarios deportivos, parques, espacios lúdicos, culturales y recreativos.","TPPIIA(IIU).Indirecto-.02.Diseño, construcción y dotación de infraestructura de escenarios deportivos, parques, espacios lúdicos, culturales y recreativos.",null,null,"TPGE(ECE).Directo-C03.05.Economía propia.","TPGE(ECM).Indirecto-C03.13.Economía propia.","TPIEG(GD2).Directo-C91.01.Adecuación institucional con enfoque de género para la garantía de derechos.","TPIEG(GI2).Indirecto-C91.01.Adecuación institucional con enfoque de género para la garantía de derechos.",null,null,null,null,null,null,null,"0104 - Secretaría General","0203 - Instituto Distrital de Gestión de Riesgos y Cambio Climático",null,null,null,null,"0260 - Canal Capital"]
[null,null,"TPPIIA(IDV).Directo-.01.Programas o iniciativas para el tránsito de la educación secundaria a superior.","TPPIIA(IIV).Indirecto-.01.Programas o iniciativas para el tránsito de la educación secundaria a superior.",null,null,"TPGE(ECF).Directo-C03.06.Adecuación institucional y lucha contra el racismo y la discriminación.","TPGE(ECN).Indirecto-C03.14.Adecuación institucional y lucha contra el racismo y la discriminación.","TPIEG(GD3).Directo-C91.02.Adecuación de infraestructura física y tecnológica con enfoque de género.","TPIEG(GI3).Indirecto-C91.02.Adecuación de infraestructura física y tecnológica con enfoque de género.",null,null,null,null,null,null,null,"0105 - Veeduría Distrital","0204 - Instituto de Desarrollo Urbano",null,null,null,null,"0262 - Empresa de Transporte del Tercer Milenio - Transmilenio S.A."]
[null,null,null,null,null,null,"TPGE(ECG).Directo-C03.07.Calidad de vida.","TPGE(ECO).Indirecto-C03.15.Calidad de vida.","TPIEG(GD4).Directo-C91.90.Transformación de imaginarios para la igualdad.","TPIEG(GI4).Indirecto-C91.90.Transformación de imaginarios para la igualdad.",null,null,null,null,null,null,null,"0110 - Secretaría Distrital de Gobierno","0206 - Fondo de Prestaciones Económicas, Cesantías y Pensiones",null,null,null,null,"0263 - Empresa de Renovación y Desarrollo Urbano"]
[null,null,null,null,null,null,"TPGE(ECH).Directo-C03.08.Mujeres.","TPGE(ECP).Indirecto-C03.16.Mujeres.",null,null,null,null,null,null,null,null,null,"0111 - Secretaría Distrital de Hacienda","0208 - Caja de Vivienda Popular",null,null,null,null,"0265 - Empresa de Acueducto y Alcantarillado de Bogotá"]
[null,null,null,null,null,null,"TPGE(EDA).Directo-C04.01.Prácticas culturales con enfoque étnico diferencial.","TPGE(EDI).Indirecto-C04.09.Prácticas culturales con enfoque étnico diferencial.",null,null,null,null,null,null,null,null,null,"0112 - Secretaría de Educación del Distrito","0211 - Instituto Distrital de Recreación y Deporte",null,null,null,null,"0266 - Empresa Metro de Bogotá S.A."]
[null,null,null,null,null,null,"TPGE(EDB).Directo-C04.02.Autonomía étnica y gobierno propio.","TPGE(EDJ).Indirecto-C04.10.Autonomía étnica y gobierno propio.",null,null,null,null,null,null,null,null,null,"0113 - Secretaría Distrital de Movilidad","0213 - Instituto Distrital del Patrimonio Cultural"]
[null,null,null,null,null,null,"TPGE(EDC).Directo-C04.03.Educación diferencial.","TPGE(EDK).Indirecto-C04.11.Educación diferencial.",null,null,null,null,null,null,null,null,null,"0117 - Secretaría Distrital de Desarrollo Económico","0214 - Instituto Distrital para la Protección de la Niñez y la Juventud"]
[null,null,null,null,null,null,"TPGE(EDD).Directo-C04.04.Medicina ancestral y tradicional.","TPGE(EDL).Indirecto-C04.12.Medicina ancestral y tradicional.",null,null,null,null,null,null,null,null,null,"0118 - Secretaría Distrital del Hábitat","0215 - Fundación Gilberto Alzate Avendaño"]
[null,null,null,null,null,null,"TPGE(EDE).Directo-C04.05.Economía propia.","TPGE(EDM).Indirecto-C04.13.Economía propia.",null,null,null,null,null,null,null,null,null,"0119 - Secretaría Distrital de Cultura, Recreación y Deporte","0216 - Orquesta Filarmónica de Bogotá"]
[null,null,null,null,null,null,"TPGE(EDF).Directo-C04.06.Adecuación institucional y lucha contra el racismo y la discriminación.","TPGE(EDN).Indirecto-C04.14.Adecuación institucional y lucha contra el racismo y la discriminación.",null,null,null,null,null,null,null,null,null,"0120 - Secretaría Distrital de Planeación","0218 - Jardín Botánico José Celestino Mutis"]
[null,null,null,null,null,null,"TPGE(EDG).Directo-C04.07.Calidad de vida.","TPGE(EDO).Indirecto-C04.15.Calidad de vida.",null,null,null,null,null,null,null,null,null,"0121 - Secretaría Distrital de la Mujer","0219 - Instituto para la Investigación Educativa y el Desarrollo Pedagógico"]
[null,null,null,null,null,null,"TPGE(EDH).Directo-C04.08.Mujeres.","TPGE(EDP).Indirecto-C04.16.Mujeres.",null,null,null,null,null,null,null,null,null,"0122 - Secretaría Distrital de Integración Social","0220 - Instituto Distrital de la Participación y Acción Comunal"]
[null,null,null,null,null,null,"TPGE(EEA).Directo-C05.01.Prácticas culturales con enfoque étnico diferencial.","TPGE(EEI).Indirecto-C05.09.Prácticas culturales con enfoque étnico diferencial.",null,null,null,null,null,null,null,null,null,"0125 - Departamento Administrativo del Servicio Civil Distrital","0221 - Instituto Distrital de Turismo"]
[null,null,null,null,null,null,"TPGE(EEB).Directo-C05.02.Autonomía étnica y gobierno propio.","TPGE(EEJ).Indirecto-C05.10.Autonomía étnica y gobierno propio.",null,null,null,null,null,null,null,null,null,"0126 - Secretaría Distrital de Ambiente","0222 - Instituto Distrital de las Artes"]
[null,null,null,null,null,null,"TPGE(EEC).Directo-C05.03.Educación diferencial.","TPGE(EEK).Indirecto-C05.11.Educación diferencial.",null,null,null,null,null,null,null,null,null,"0127 - Departamento Administrativo de la Defensoría del Espacio Público","0226 - Unidad Administrativa Especial de Catastro Distrital"]
[null,null,null,null,null,null,"TPGE(EED).Directo-C05.04.Medicina ancestral y tradicional.","TPGE(EEL).Indirecto-C05.12.Medicina ancestral y tradicional.",null,null,null,null,null,null,null,null,null,"0131 - Unidad Administrativa Especial Cuerpo Oficial de Bomberos","0227 - Unidad Administrativa Especial de Rehabilitación y Mantenimiento Vial"]
[null,null,null,null,null,null,"TPGE(EEE).Directo-C05.05.Economía propia.","TPGE(EEM).Indirecto-C05.13.Economía propia.",null,null,null,null,null,null,null,null,null,"0136 - Secretaría Jurídica Distrital","0228 - Unidad Administrativa Especial de Servicios Públicos"]
[null,null,null,null,null,null,"TPGE(EEF).Directo-C05.06.Adecuación institucional y lucha contra el racismo y la discriminación.","TPGE(EEN).Indirecto-C05.14.Adecuación institucional y lucha contra el racismo y la discriminación.",null,null,null,null,null,null,null,null,null,"0137 - Secretaría Distrital de Seguridad, Convivencia y Justicia","0229 - Instituto Distrital de Protección y Bienestar Animal"]
[null,null,null,null,null,null,"TPGE(EEG).Directo-C05.07.Calidad de vida.","TPGE(EEO).Indirecto-C05.15.Calidad de vida.",null,null,null,null,null,null,null,null,null,"0200 - Instituto para la Economía Social","0230 - Universidad Distrital Francisco José de Caldas"]
[null,null,null,null,null,null,"TPGE(EEH).Directo-C05.08.Mujeres.","TPGE(EEP).Indirecto-C05.16.Mujeres.",null,null,null,null,null,null,null,null,null,"0201 - Secretaría Distrital de Salud / Fondo Financiero Distrital de Salud","0235 - Contraloría Distrital"]
[null,null,null,null,null,null,"TPGE(EFA).Directo-C06.01.Prácticas culturales con enfoque étnico diferencial.","TPGE(EFI).Indirecto-C06.09.Prácticas culturales con enfoque étnico diferencial.",null,null,null,null,null,null,null,null,null,"0203 - Instituto Distrital de Gestión de Riesgos y Cambio Climático","0240 - Lotería de Bogotá"]
[null,null,null,null,null,null,"TPGE(EFB).Directo-C06.02.Autonomía étnica y gobierno propio.","TPGE(EFJ).Indirecto-C06.10.Autonomía étnica y gobierno propio.",null,null,null,null,null,null,null,null,null,"0204 - Instituto de Desarrollo Urbano","0260 - Canal Capital"]
[null,null,null,null,null,null,"TPGE(EFC).Directo-C06.03.Educación diferencial.","TPGE(EFK).Indirecto-C06.11.Educación diferencial.",null,null,null,null,null,null,null,null,null,"0206 - Fondo de Prestaciones Económicas, Cesantías y Pensiones","0262 - Empresa de Transporte del Tercer Milenio - Transmilenio S.A."]
[null,null,null,null,null,null,"TPGE(EFD).Directo-C06.04.Medicina ancestral y tradicional.","TPGE(EFL).Indirecto-C06.12.Medicina ancestral y tradicional.",null,null,null,null,null,null,null,null,null,"0208 - Caja de Vivienda Popular","0263 - Empresa de Renovación y Desarrollo Urbano"]
[null,null,null,null,null,null,"TPGE(EFE).Directo-C06.05.Economía propia.","TPGE(EFM).Indirecto-C06.13.Economía propia.",null,null,null,null,null,null,null,null,null,"0211 - Instituto Distrital de Recreación y Deporte","0265 - Empresa de Acueducto y Alcantarillado de Bogotá"]
[null,null,null,null,null,null,"TPGE(EFF).Directo-C06.06.Adecuación institucional y lucha contra el racismo y la discriminación.","TPGE(EFN).Indirecto-C06.14.Adecuación institucional y lucha contra el racismo y la discriminación.",null,null,null,null,null,null,null,null,null,"0213 - Instituto Distrital del Patrimonio Cultural","0266 - Empresa Metro de Bogotá S.A."]
[null,null,null,null,null,null,"TPGE(EFG).Directo-C06.07.Calidad de vida.","TPGE(EFO).Indirecto-C06.15.Calidad de vida.",null,null,null,null,null,null,null,null,null,"0214 - Instituto Distrital para la Protección de la Niñez y la Juventud","0501 - Agencia Distrital para la Educación Superior, la Ciencia y la Tecnología"]
[null,null,null,null,null,null,"TPGE(EFH).Directo-C06.08.Mujeres.","TPGE(EFP).Indirecto-C06.16.Mujeres.",null,null,null,null,null,null,null,null,null,"0215 - Fundación Gilberto Alzate Avendaño"]
[null,null,null,null,null,null,"TPGE(EGA).Directo-C07.01.Prácticas culturales con enfoque étnico diferencial.","TPGE(EGI).Indirecto-C07.09.Prácticas culturales con enfoque étnico diferencial.",null,null,null,null,null,null,null,null,null,"0216 - Orquesta Filarmónica de Bogotá"]
[null,null,null,null,null,null,"TPGE(EGB).Directo-C07.02.Autonomía étnica y gobierno propio.","TPGE(EGJ).Indirecto-C07.10.Autonomía étnica y gobierno propio.",null,null,null,null,null,null,null,null,null,"0218 - Jardín Botánico José Celestino Mutis"]
[null,null,null,null,null,null,"TPGE(EGC).Directo-C07.03.Educación diferencial.","TPGE(EGK).Indirecto-C07.11.Educación diferencial.",null,null,null,null,null,null,null,null,null,"0219 - Instituto para la Investigación Educativa y el Desarrollo Pedagógico"]
[null,null,null,null,null,null,"TPGE(EGD).Directo-C07.04.Medicina ancestral y tradicional.","TPGE(EGL).Indirecto-C07.12.Medicina ancestral y tradicional.",null,null,null,null,null,null,null,null,null,"0220 - Instituto Distrital de la Participación y Acción Comunal"]
[null,null,null,null,null,null,"TPGE(EGE).Directo-C07.05.Economía propia.","TPGE(EGM).Indirecto-C07.13.Economía propia.",null,null,null,null,null,null,null,null,null,"0221 - Instituto Distrital de Turismo"]
[null,null,null,null,null,null,"TPGE(EGF).Directo-C07.06.Adecuación institucional y lucha contra el racismo y la discriminación.","TPGE(EGN).Indirecto-C07.14.Adecuación institucional y lucha contra el racismo y la discriminación.",null,null,null,null,null,null,null,null,null,"0222 - Instituto Distrital de las Artes"]
[null,null,null,null,null,null,"TPGE(EGG).Directo-C07.07.Calidad de vida.","TPGE(EGO).Indirecto-C07.15.Calidad de vida.",null,null,null,null,null,null,null,null,null,"0226 - Unidad Administrativa Especial de Catastro Distrital"]
[null,null,null,null,null,null,"TPGE(EGH).Directo-C07.08.Mujeres.","TPGE(EGP).Indirecto-C07.16.Mujeres.",null,null,null,null,null,null,null,null,null,"0227 - Unidad Administrativa Especial de Rehabilitación y Mantenimiento Vial"]
[null,null,null,null,null,null,"TPGE(EHA).Directo-C08.01.Prácticas culturales con enfoque étnico diferencial.","TPGE(EHI).Indirecto-C08.09.Prácticas culturales con enfoque étnico diferencial.",null,null,null,null,null,null,null,null,null,"0228 - Unidad Administrativa Especial de Servicios Públicos"]
[null,null,null,null,null,null,"TPGE(EHB).Directo-C08.02.Autonomía étnica y gobierno propio.","TPGE(EHJ).Indirecto-C08.10.Autonomía étnica y gobierno propio.",null,null,null,null,null,null,null,null,null,"0229 - Instituto Distrital de Protección y Bienestar Animal"]
[null,null,null,null,null,null,"TPGE(EHC).Directo-C08.03.Educación diferencial.","TPGE(EHK).Indirecto-C08.11.Educación diferencial.",null,null,null,null,null,null,null,null,null,"0230 - Universidad Distrital Francisco José de Caldas"]
[null,null,null,null,null,null,"TPGE(EHD).Directo-C08.04.Medicina ancestral y tradicional.","TPGE(EHL).Indirecto-C08.12.Medicina ancestral y tradicional.",null,null,null,null,null,null,null,null,null,"0235 - Contraloría Distrital"]
[null,null,null,null,null,null,"TPGE(EHE).Directo-C08.05.Economía propia.","TPGE(EHM).Indirecto-C08.13.Economía propia.",null,null,null,null,null,null,null,null,null,"0240 - Lotería de Bogotá"]
[null,null,null,null,null,null,"TPGE(EHF).Directo-C08.06.Adecuación institucional y lucha contra el racismo y la discriminación.","TPGE(EHN).Indirecto-C08.14.Adecuación institucional y lucha contra el racismo y la discriminación.",null,null,null,null,null,null,null,null,null,"0260 - Canal Capital"]
[null,null,null,null,null,null,"TPGE(EHG).Directo-C08.07.Calidad de vida.","TPGE(EHO).Indirecto-C08.15.Calidad de vida.",null,null,null,null,null,null,null,null,null,"0262 - Empresa de Transporte del Tercer Milenio - Transmilenio S.A."]
[null,null,null,null,null,null,"TPGE(EHH).Directo-C08.08.Mujeres.","TPGE(EHP).Indirecto-C08.16.Mujeres.",null,null,null,null,null,null,null,null,null,"0263 - Empresa de Renovación y Desarrollo Urbano"]
[null,null,null,null,null,null,"TPGE(EIA).Directo-C09.01.Prácticas culturales con enfoque étnico diferencial.","TPGE(EII).Indirecto-C09.09.Prácticas culturales con enfoque étnico diferencial.",null,null,null,null,null,null,null,null,null,"0265 - Empresa de Acueducto y Alcantarillado de Bogotá"]
[null,null,null,null,null,null,"TPGE(EIB).Directo-C09.02.Autonomía étnica y gobierno propio.","TPGE(EIJ).Indirecto-C09.10.Autonomía étnica y gobierno propio.",null,null,null,null,null,null,null,null,null,"0266 - Empresa Metro de Bogotá S.A."]
[null,null,null,null,null,null,"TPGE(EIC).Directo-C09.03.Educación diferencial.","TPGE(EIK).Indirecto-C09.11.Educación diferencial.",null,null,null,null,null,null,null,null,null,"0501 - Agencia Distrital para la Educación Superior, la Ciencia y la Tecnología"]
[null,null,null,null,null,null,"TPGE(EID).Directo-C09.04.Medicina ancestral y tradicional.","TPGE(EIL).Indirecto-C09.12.Medicina ancestral y tradicional."]
[null,null,null,null,null,null,"TPGE(EIE).Directo-C09.05.Economía propia.","TPGE(EIM).Indirecto-C09.13.Economía propia."]
[null,null,null,null,null,null,"TPGE(EIF).Directo-C09.06.Adecuación institucional y lucha contra el racismo y la discriminación.","TPGE(EIN).Indirecto-C09.14.Adecuación institucional y lucha contra el racismo y la discriminación."]
[null,null,null,null,null,null,"TPGE(EIG).Directo-C09.07.Calidad de vida.","TPGE(EIO).Indirecto-C09.15.Calidad de vida."]
[null,null,null,null,null,null,"TPGE(EIH).Directo-C09.08.Mujeres.","TPGE(EIP).Indirecto-C09.16.Mujeres."]
[null,null,null,null,null,null,"TPGE(EJA).Directo-C10.01.Prácticas culturales con enfoque étnico diferencial.","TPGE(EJI).Indirecto-C10.09.Prácticas culturales con enfoque étnico diferencial."]
[null,null,null,null,null,null,"TPGE(EJB).Directo-C10.02.Autonomía étnica y gobierno propio.","TPGE(EJJ).Indirecto-C10.10.Autonomía étnica y gobierno propio."]
[null,null,null,null,null,null,"TPGE(EJC).Directo-C10.03.Educación diferencial.","TPGE(EJK).Indirecto-C10.11.Educación diferencial."]
[null,null,null,null,null,null,"TPGE(EJD).Directo-C10.04.Medicina ancestral y tradicional.","TPGE(EJL).Indirecto-C10.12.Medicina ancestral y tradicional."]
[null,null,null,null,null,null,"TPGE(EJE).Directo-C10.05.Economía propia.","TPGE(EJM).Indirecto-C10.13.Economía propia."]
[null,null,null,null,null,null,"TPGE(EJF).Directo-C10.06.Adecuación institucional y lucha contra el racismo y la discriminación.","TPGE(EJN).Indirecto-C10.14.Adecuación institucional y lucha contra el racismo y la discriminación."]
[null,null,null,null,null,null,"TPGE(EJG).Directo-C10.07.Calidad de vida.","TPGE(EJO).Indirecto-C10.15.Calidad de vida."]
[null,null,null,null,null,null,"TPGE(EJH).Directo-C10.08.Mujeres.","TPGE(EJP).Indirecto-C10.16.Mujeres."]
[null,null,null,null,null,null,"TPGE(EKA).Directo-C11.01.Prácticas culturales con enfoque étnico diferencial.","TPGE(EKI).Indirecto-C11.09.Prácticas culturales con enfoque étnico diferencial."]
[null,null,null,null,null,null,"TPGE(EKB).Directo-C11.02.Autonomía étnica y gobierno propio.","TPGE(EKJ).Indirecto-C11.10.Autonomía étnica y gobierno propio."]
[null,null,null,null,null,null,"TPGE(EKC).Directo-C11.03.Educación diferencial.","TPGE(EKK).Indirecto-C11.11.Educación diferencial."]
[null,null,null,null,null,null,"TPGE(EKD).Directo-C11.04.Medicina ancestral y tradicional.","TPGE(EKL).Indirecto-C11.12.Medicina ancestral y tradicional."]
[null,null,null,null,null,null,"TPGE(EKE).Directo-C11.05.Economía propia.","TPGE(EKM).Indirecto-C11.13.Economía propia."]
[null,null,null,null,null,null,"TPGE(EKF).Directo-C11.06.Adecuación institucional y lucha contra el racismo y la discriminación.","TPGE(EKN).Indirecto-C11.14.Adecuación institucional y lucha contra el racismo y la discriminación."]
[null,null,null,null,null,null,"TPGE(EKG).Directo-C11.07.Calidad de vida.","TPGE(EKO).Indirecto-C11.15.Calidad de vida."]
[null,null,null,null,null,null,"TPGE(EKH).Directo-C11.08.Mujeres.","TPGE(EKP).Indirecto-C11.16.Mujeres."]
[null,null,null,null,null,null,"TPGE(ELA).Directo-C12.01.Prácticas culturales con enfoque étnico diferencial.","TPGE(ELI).Indirecto-C12.09.Prácticas culturales con enfoque étnico diferencial."]
[null,null,null,null,null,null,"TPGE(ELB).Directo-C12.02.Autonomía étnica y gobierno propio.","TPGE(ELJ).Indirecto-C12.10.Autonomía étnica y gobierno propio."]
[null,null,null,null,null,null,"TPGE(ELC).Directo-C12.03.Educación diferencial.","TPGE(ELK).Indirecto-C12.11.Educación diferencial."]
[null,null,null,null,null,null,"TPGE(ELD).Directo-C12.04.Medicina ancestral y tradicional.","TPGE(ELL).Indirecto-C12.12.Medicina ancestral y tradicional."]
[null,null,null,null,null,null,"TPGE(ELE).Directo-C12.05.Economía propia.","TPGE(ELM).Indirecto-C12.13.Economía propia."]
[null,null,null,null,null,null,"TPGE(ELF).Directo-C12.06.Adecuación institucional y lucha contra el racismo y la discriminación.","TPGE(ELN).Indirecto-C12.14.Adecuación institucional y lucha contra el racismo y la discriminación."]
[null,null,null,null,null,null,"TPGE(ELG).Directo-C12.07.Calidad de vida.","TPGE(ELO).Indirecto-C12.15.Calidad de vida."]
[null,null,null,null,null,null,"TPGE(ELH).Directo-C12.08.Mujeres.","TPGE(ELP).Indirecto-C12.16.Mujeres."]
[null,null,null,null,null,null,"TPGE(EMA).Directo-C13.01.Prácticas culturales con enfoque étnico diferencial.","TPGE(EMI).Indirecto-C13.09.Prácticas culturales con enfoque étnico diferencial."]
[null,null,null,null,null,null,"TPGE(EMB).Directo-C13.02.Autonomía étnica y gobierno propio.","TPGE(EMJ).Indirecto-C13.10.Autonomía étnica y gobierno propio."]
[null,null,null,null,null,null,"TPGE(EMC).Directo-C13.03.Educación diferencial.","TPGE(EMK).Indirecto-C13.11.Educación diferencial."]
[null,null,null,null,null,null,"TPGE(EMD).Directo-C13.04.Medicina ancestral y tradicional.","TPGE(EML).Indirecto-C13.12.Medicina ancestral y tradicional."]
[null,null,null,null,null,null,"TPGE(EME).Directo-C13.05.Economía propia.","TPGE(EMM).Indirecto-C13.13.Economía propia."]
[null,null,null,null,null,null,"TPGE(EMF).Directo-C13.06.Adecuación institucional y lucha contra el racismo y la discriminación.","TPGE(EMN).Indirecto-C13.14.Adecuación institucional y lucha contra el racismo y la discriminación."]
[null,null,null,null,null,null,"TPGE(EMG).Directo-C13.07.Calidad de vida.","TPGE(EMO).Indirecto-C13.15.Calidad de vida."]
[null,null,null,null,null,null,"TPGE(EMH).Directo-C13.08.Mujeres.","TPGE(EMP).Indirecto-C13.16.Mujeres."]
[null,null,null,null,null,null,"TPGE(ENA).Directo-C14.01.Prácticas culturales con enfoque étnico diferencial.","TPGE(ENI).Indirecto-C14.09.Prácticas culturales con enfoque étnico diferencial."]
[null,null,null,null,null,null,"TPGE(ENB).Directo-C14.02.Autonomía étnica y gobierno propio.","TPGE(ENJ).Indirecto-C14.10.Autonomía étnica y gobierno propio."]
[null,null,null,null,null,null,"TPGE(ENC).Directo-C14.03.Educación diferencial.","TPGE(ENK).Indirecto-C14.11.Educación diferencial."]
[null,null,null,null,null,null,"TPGE(END).Directo-C14.04.Medicina ancestral y tradicional.","TPGE(ENL).Indirecto-C14.12.Medicina ancestral y tradicional."]
[null,null,null,null,null,null,"TPGE(ENE).Directo-C14.05.Economía propia.","TPGE(ENM).Indirecto-C14.13.Economía propia."]
[null,null,null,null,null,null,"TPGE(ENF).Directo-C14.06.Adecuación institucional y lucha contra el racismo y la discriminación.","TPGE(ENN).Indirecto-C14.14.Adecuación institucional y lucha contra el racismo y la discriminación."]
[null,null,null,null,null,null,"TPGE(ENG).Directo-C14.07.Calidad de vida.","TPGE(ENO).Indirecto-C14.15.Calidad de vida."]
[null,null,null,null,null,null,"TPGE(ENH).Directo-C14.08.Mujeres.","TPGE(ENP).Indirecto-C14.16.Mujeres."]
[null,null,null,null,null,null,"TPGE(EOA).Directo-C15.01.Prácticas culturales con enfoque étnico diferencial.","TPGE(EOI).Indirecto-C15.09.Prácticas culturales con enfoque étnico diferencial."]
[null,null,null,null,null,null,"TPGE(EOB).Directo-C15.02.Autonomía étnica y gobierno propio.","TPGE(EOJ).Indirecto-C15.10.Autonomía étnica y gobierno propio."]
[null,null,null,null,null,null,"TPGE(EOC).Directo-C15.03.Educación diferencial.","TPGE(EOK).Indirecto-C15.11.Educación diferencial."]
[null,null,null,null,null,null,"TPGE(EOD).Directo-C15.04.Medicina ancestral y tradicional.","TPGE(EOL).Indirecto-C15.12.Medicina ancestral y tradicional."]
[null,null,null,null,null,null,"TPGE(EOE).Directo-C15.05.Economía propia.","TPGE(EOM).Indirecto-C15.13.Economía propia."]
[null,null,null,null,null,null,"TPGE(EOF).Directo-C15.06.Adecuación institucional y lucha contra el racismo y la discriminación.","TPGE(EON).Indirecto-C15.14.Adecuación institucional y lucha contra el racismo y la discriminación."]
[null,null,null,null,null,null,"TPGE(EOG).Directo-C15.07.Calidad de vida.","TPGE(EOO).Indirecto-C15.15.Calidad de vida."]
[null,null,null,null,null,null,"TPGE(EOH).Directo-C15.08.Mujeres.","TPGE(EOP).Indirecto-C15.16.Mujeres."]